2CCN - Level 2 Cost Centre Name,,9CCN - Level 9 Cost Centre Name,9CCC - Level 9 Cost Centre Code,9AN - Level 9 Account Name,9AC - Level 9 Account Code,Transaction Description,Date Paid,Transaction Reference,Analysed Amount,2AC - Level 2 Account Codes,Supplier Name,Supplier Code
Gloucester City Council,23UE,Business Transformation & Tech,RT700,Computer Software Maintenance,5427,SR connector upgrade,03/05/2016,418214,950,NET,Idox Group,07229U
Gloucester City Council,23UE,Cemeteries,HC300,Fuel,4012,Gasoil,03/05/2016,418212,390,NET,Cpl Petroleum,55192U
Gloucester City Council,23UE,City Museum Catering,LM202,Catering Provisions -Food,5110,APR16 machine rental,03/05/2016,418217,135,NET,La Spaziale Uk Ltd,11823P
Gloucester City Council,23UE,Client Revs & Bens Contract,RT240,Fees For Services Received,5350,Universal Credit implementation,03/05/2016,418182,4802.8,NET,Civica Uk Ltd,10841X
Gloucester City Council,23UE,Contact Centre,RB300,Miscellaneous Expenses,2952,copyright licence MAY16-MAY17,03/05/2016,418218,1315,NET,Nla Media Access Ltd,10001D
Gloucester City Council,23UE,Contact Centre,RB300,Stationery,5302,printhead,03/05/2016,418180,18.83,NET,Lyreco Uk Ltd,11746G
Gloucester City Council,23UE,Contact Centre,RB300,Stationery,5302,stationery,03/05/2016,418176,55.92,NET,Lyreco Uk Ltd,11746G
Gloucester City Council,23UE,Contact Centre,RB300,Stationery,5302,stationery,03/05/2016,418177,65.2,NET,Lyreco Uk Ltd,11746G
Gloucester City Council,23UE,Contact Centre,RB300,Stationery,5302,stationery,03/05/2016,418178,18.56,NET,Lyreco Uk Ltd,11746G
Gloucester City Council,23UE,Contact Centre,RB300,Stationery,5302,stationery,03/05/2016,418179,159.04,NET,Lyreco Uk Ltd,11746G
Gloucester City Council,23UE,Docks Complex - Catering Servs,RB110,Sale Of Council Products,9220,buffet,03/05/2016,418215,23.76,NET,Janes Pantry,24500W
Gloucester City Council,23UE,Docks Complex - Catering Servs,RB110,Sale Of Council Products,9220,buffet,03/05/2016,418216,31.68,NET,Janes Pantry,24500W
Gloucester City Council,23UE,Grants To Voluntary Sector,FG100,Members Allocation Fund,7100F,Members grant,03/05/2016,418211,500,NET,My:Uk,10755R
Gloucester City Council,23UE,Guildhall Bar And Caf�,LA210,Catering Provisions -Food,5110,food,03/05/2016,418197,32.7,NET,Janes Pantry,24500W
Gloucester City Council,23UE,Guildhall Bar And Caf�,LA210,Catering Provisions -Food,5110,milk,03/05/2016,418200,4.4,NET,Total Produce Gloucester,12645E
Gloucester City Council,23UE,REDACTED,REDACTED,REDACTED,REDACTED,REDACTED,03/05/2016,REDACTED,90,NET,REDACTED,REDACTED
Gloucester City Council,23UE,REDACTED,REDACTED,REDACTED,REDACTED,REDACTED,03/05/2016,REDACTED,120,NET,REDACTED,REDACTED
Gloucester City Council,23UE,Guildhall Events,LA200,Advertising And Publicity,5702,"Adverts April 16, 17, 18, 19",03/05/2016,418183,180,NET,Local World Ltd,08556P
Gloucester City Council,23UE,Guildhall Events,LA200,Advertising And Publicity,5702,value roller banner,03/05/2016,418181,594.75,NET,4imprint Direct Ltd,59494J
Gloucester City Council,23UE,Hmo Licences,HE520,Operational Equipment <5000,5012,transcription services,03/05/2016,418185,387.5,NET,Bromsgrove District Council,15037G
Gloucester City Council,23UE,Housing Works In Default,HD500,Clearance And Cleansing Fees,5384,25 St Michael's Square works,03/05/2016,418221,665,NET,Pinetree (Gloucester) Ltd,53288Y
Gloucester City Council,23UE,Nms Contract,HI102,Additional Non-Tender Items,6973,LARAC conference OCT16,03/05/2016,418213,417,NET,Environment Media Group,14994E
Gloucester City Council,23UE,Planning Policy & Heritage,PT300,Basic Pay - Temporary Staff,2751,temporary staff w/e 24/4/16,03/05/2016,418223,2332.96,NET,The Oyster Partnership Limited,14900T
Gloucester City Council,23UE,Rehousing,CH111,Fees For Services Received,5350,medical report,03/05/2016,418208,20.5,NET,Rosebank Health,03041E
Gloucester City Council,23UE,Rehousing,CH111,Fees For Services Received,5350,medical report,03/05/2016,418209,20.5,NET,Rosebank Health,03041E
Gloucester City Council,23UE,REDACTED,REDACTED,REDACTED,REDACTED,REDACTED,03/05/2016,REDACTED,20.5,NET,REDACTED,REDACTED
Gloucester City Council,23UE,Targeted Historic Grants,GY008,Contract Payments,20,final grant re 24 Westgate Street works,03/05/2016,418227,720,CAP,Elviria Group Ltd,16039T
Gloucester City Council,23UE,Townscape Heritage Initiative,LY145,Contract Payments,20,THI Education pack,03/05/2016,418206,2000,CAP,Kingsholm C Of E Primary School,59749Y
Gloucester City Council,23UE,Westgate Leisure Area S106,LY155,Contract Payments,20,Westgate Leisure Area works,03/05/2016,418220,1925,CAP,Peter Quinn Associates,12891L
Gloucester City Council,23UE,Aspire Admin Charges,LC105,Contracted Services,6970,management fees APR16,04/05/2016,417406,38125.58,NET,Aspire Sports & Cultural Trust,08135V
Gloucester City Council,23UE,Business Transformation & Tech,RT700,Computer Software <5000,5425,software support APR16-APR17,04/05/2016,418282,2743.8,NET,Q-Nomy,14828D
Gloucester City Council,23UE,Business Transformation & Tech,RT700,Computer Software <5000,5425,upgrade to Idox PA v2,04/05/2016,418268,4950,NET,Idox Group,07229U
Gloucester City Council,23UE,Business Transformation & Tech,RT700,Computer Software Maintenance,5427,APR16-MAR17 fees,04/05/2016,418277,12500,NET,Xpress Software Solutions,13533H
Gloucester City Council,23UE,Business Transformation & Tech,RT700,Licences,5703,Annual Software Licence,04/05/2016,415932,2500,NET,Northgate Public Services Uk Ltd,08982S
Gloucester City Council,23UE,City Museum Catering,LM202,Catering Provisions -Food,5110,coffee beans,04/05/2016,418298,84.5,NET,James Gourmet Coffee Co.,55049A
Gloucester City Council,23UE,City Museum Catering,LM202,Catering Provisions -Food,5110,milk,04/05/2016,418283,7.14,NET,Total Produce Gloucester,12645E
Gloucester City Council,23UE,City Museum Catering,LM202,Catering Provisions -Food,5110,milk,04/05/2016,418292,4.76,NET,Total Produce Gloucester,12645E
Gloucester City Council,23UE,City Museum Catering,LM202,Catering Provisions -Food,5110,milk,04/05/2016,418293,7.14,NET,Total Produce Gloucester,12645E
Gloucester City Council,23UE,City Museum Catering,LM202,Catering Provisions -Food,5110,milk,04/05/2016,418294,4.76,NET,Total Produce Gloucester,12645E
Gloucester City Council,23UE,Client Revs & Bens Contract,RT240,Bailiffs Fees,5368,VAT only invoice,04/05/2016,418175,0,NET,Bristow & Sutor,05450M
Gloucester City Council,23UE,Client Revs & Bens Contract,RT240,Bailiffs Fees,5368,VAT only invoice,04/05/2016,418189,0,NET,Bristow & Sutor,05450M
Gloucester City Council,23UE,Client Revs & Bens Contract,RT240,Bailiffs Fees,5368,VAT only invoice,04/05/2016,418195,0,NET,Phoenix Commercial Collections Ltd,13435J
Gloucester City Council,23UE,Client Revs & Bens Contract,RT240,Bailiffs Fees,5368,VAT only invoice,04/05/2016,418196,0,NET,Phoenix Commercial Collections Ltd,13435J
Gloucester City Council,23UE,Client Revs & Bens Contract,RT240,Bailiffs Fees,5368,VAT only invoice,04/05/2016,418258,0,NET,Phoenix Commercial Collections Ltd,13435J
Gloucester City Council,23UE,Council Streetcare Team,HI101,Fees For Services Received,5350,MAR16 support costs,04/05/2016,418301,1264.97,NET,Somerset County Council,15963G
Gloucester City Council,23UE,Crematorium,HC200,Memorial Plaques,5053,bronze plaque,04/05/2016,418266,54,NET,Arkell & Hurcombe,59812T
Gloucester City Council,23UE,Crematorium,HC200,Memorial Plaques,5053,bronze plaques,04/05/2016,418289,408,NET,Arkell & Hurcombe,59812T
Gloucester City Council,23UE,REDACTED,REDACTED,REDACTED,REDACTED,REDACTED,04/05/2016,REDACTED,100,NET,REDACTED,REDACTED
Gloucester City Council,23UE,Financial Services,RT200,Fees For Services Received,5350,Emergency Out of Hours Service,04/05/2016,416575,2159,NET,Tewkesbury Borough Council,43800C
Gloucester City Council,23UE,General Drainage Works,PY241,Contract Payments,20,Porchester Road works,04/05/2016,418269,3440,CAP,Rj Contracting (Environmental) Ltd,07429H
Gloucester City Council,23UE,REDACTED,REDACTED,REDACTED,REDACTED,REDACTED,04/05/2016,REDACTED,116,NET,REDACTED,REDACTED
Gloucester City Council,23UE,REDACTED,REDACTED,REDACTED,REDACTED,REDACTED,04/05/2016,REDACTED,100,NET,REDACTED,REDACTED
Gloucester City Council,23UE,REDACTED,REDACTED,REDACTED,REDACTED,REDACTED,04/05/2016,REDACTED,100,NET,REDACTED,REDACTED
Gloucester City Council,23UE,REDACTED,REDACTED,REDACTED,REDACTED,REDACTED,04/05/2016,REDACTED,100,NET,REDACTED,REDACTED
Gloucester City Council,23UE,REDACTED,REDACTED,REDACTED,REDACTED,REDACTED,04/05/2016,REDACTED,100,NET,REDACTED,REDACTED
Gloucester City Council,23UE,REDACTED,REDACTED,REDACTED,REDACTED,REDACTED,04/05/2016,REDACTED,130,NET,REDACTED,REDACTED
Gloucester City Council,23UE,REDACTED,REDACTED,REDACTED,REDACTED,REDACTED,04/05/2016,REDACTED,730,NET,REDACTED,REDACTED
Gloucester City Council,23UE,Health Administration,HA200,Subscriptions,5600,EHCnet subscription,04/05/2016,418272,480,NET,Cieh,59465S
Gloucester City Council,23UE,Homelessness,CH120,Board And Lodging,5515,Out of Hours Emergency,04/05/2016,416573,484.17,NET,Tewkesbury Borough Council,43800C
Gloucester City Council,23UE,Housing Works In Default,HD500,Clearance And Cleansing Fees,5384,25 Vetch Close works,04/05/2016,418271,950,NET,Rj Contracting (Environmental) Ltd,07429H
Gloucester City Council,23UE,Housing Works In Default,HD500,Clearance And Cleansing Fees,5384,86 India road works,04/05/2016,418270,290,NET,Rj Contracting (Environmental) Ltd,07429H
Gloucester City Council,23UE,Investment Property,RB500,Fire Fighting Equipment,3008,Museum fire risk assessment,04/05/2016,418275,220,NET,Allcoopers Ltd,52921E
Gloucester City Council,23UE,Land Searches,RO300,Fees For Services Received,5350,JAN-MAR16 CON29 search responses,04/05/2016,418260,6354.31,NET,Gloucestershire County Council,18650D
Gloucester City Council,23UE,Tic Theatre Ticket Sales,LT107,Materials For Sale,5080,ticket sales for Old Time Music Hall,04/05/2016,418304,412,NET,Tyger Productions,14645K
Gloucester City Council,23UE,Tic Theatre Ticket Sales,LT107,Sale Of Goods And Services,9230,ticket sales for Old Time Music Hall,04/05/2016,418304,-34.34,NET,Tyger Productions,14645K
Gloucester City Council,23UE,Vehicles,RS140,Fuel,4012,vehicle fuel,04/05/2016,418174,283.15,NET,Allstar Business Solutions Ltd (Arval),06594A
Gloucester City Council,23UE,Asset Management,RS300,Basic Pay - Temporary Staff,2751,professional service APR16,05/05/2016,418361,6900,NET,Ardley Associates,09369F
Gloucester City Council,23UE,City Museum And Art Gallery,LM200,Care Of Collections,5039,support & membership APR16-MAR17,05/05/2016,417696,448,NET,Modes Users Association,52797E
Gloucester City Council,23UE,REDACTED,REDACTED,REDACTED,REDACTED,REDACTED,05/05/2016,REDACTED,174.6,NET,REDACTED,REDACTED
Gloucester City Council,23UE,Contact Centre,RB300,Stationery,5302,stationery,05/05/2016,418366,28.51,NET,Lyreco Uk Ltd,11746G
Gloucester City Council,23UE,Countryside Unit,LP201,Routine R And M - Vehicles,4011,vee belt,05/05/2016,418359,21.56,NET,A C Belting Ltd,00250X
Gloucester City Council,23UE,Environmental Planning,LM340,Vocational Training,2970,lessons form the Park conference,05/05/2016,418284,95,NET,Green Connect Limited,16455Y
Gloucester City Council,23UE,Food Safety,HE100,Fees For Services Received,5350,test cap calibration,05/05/2016,418279,51,NET,Klipspringer,09079U
Gloucester City Council,23UE,Gates Streets,GY014,Contract Payments,20,Hanging basket & wal trough contribution,05/05/2016,418360,3000,CAP,Ae Bishop T/A Evergreen Nurseries,14604A
Gloucester City Council,23UE,Housing Works In Default,HD500,Clearance And Cleansing Fees,5384,31 Napier Road works,05/05/2016,416263,2122.57,NET,Rf Gardiner Limited,12299B
Gloucester City Council,23UE,Investment Property,RB500,Door Entry Systems Maint,3064,Guildhall Works,05/05/2016,416020,1800,NET,Poweradoor Ltd,16396N
Gloucester City Council,23UE,Investment Property,RB500,General Repair/Maint Buildings,3000,MARCH MTC claims,05/05/2016,418363,17041.75,NET,Rf Gardiner Limited,12299B
Gloucester City Council,23UE,Kings Quarter,RY146,Contract Payments,20,Bus Station CDM works,05/05/2016,418365,350,CAP,Julian Stokes Management Ltd,09046K
Gloucester City Council,23UE,Kings Quarter,RY146,Contract Payments,20,Bus station hoarding,05/05/2016,418333,22908.85,CAP,Rf Gardiner Limited,12299B
Gloucester City Council,23UE,Kings Quarter,RY146,Contract Payments,20,Bus Station hoardings,05/05/2016,418332,12930.24,CAP,Rf Gardiner Limited,12299B
Gloucester City Council,23UE,REDACTED,REDACTED,REDACTED,REDACTED,REDACTED,05/05/2016,REDACTED,195,NET,REDACTED,REDACTED
Gloucester City Council,23UE,Pollution Control,HE300,Fees For Services Received,5350,Vauxhall Vivaro removal & disposal,05/05/2016,418367,80,NET,Harry Buckland,16135W
Gloucester City Council,23UE,Printing,RP103,Printing,5300,APR16 print room sales,05/05/2016,418375,575.12,NET,Alpha Colour Printers Ltd,00945B
Gloucester City Council,23UE,Safer Stronger Communities,FP841,Other Minor Supplies Services,5590,t shirts & printing,05/05/2016,418355,91.67,NET,Leisure Lines,13017E
Gloucester City Council,23UE,Shopmobility,PE200,Cleaning Materials,3600,MAY16 medical waste service,05/05/2016,418219,12.91,NET,Ocs Group Uk Limited T/A Cannon,06506A
Gloucester City Council,23UE,Westgate Leisure Area S106,LY155,Contract Payments,20,Westgate Park works,05/05/2016,418295,2615,CAP,Tweedie Evans Consulting Ltd,16444D
Gloucester City Council,23UE,16 Commercial Road,RB539,General Repair/Maint Buildings,3000,16 Commercial Road - New Roof,06/05/2016,415855,600,NET,Goddard Consulting Llp,10598G
Gloucester City Council,23UE,Blackfriars,LA609,Contract Cleaning,3620,APR16 cleaining,06/05/2016,418262,585,NET,Into Cleaning,14609P
Gloucester City Council,23UE,Cemeteries,HC300,Trade Refuse Tipping Fees,6297,skip exchange,06/05/2016,418264,640,NET,Allstone Sand & Gravel Aggregates Ltd,00940M
Gloucester City Council,23UE,Crematorium,HC200,Fees For Services Received,5350,Doctors Fees Apr 16,06/05/2016,418436,1290.96,NET,Dr C M Stretton,00306P
Gloucester City Council,23UE,Crematorium,HC200,Fees For Services Received,5350,Fees April 2016,06/05/2016,418437,1236.96,NET,Dr D Martin,00890P
Gloucester City Council,23UE,Crematorium,HC200,Fees For Services Received,5350,Fees April 2016,06/05/2016,418438,656.16,NET,Dr R W Bell,01571P
Gloucester City Council,23UE,Disabled Facilities Grants,CY013,Disabled Facility Grants,74,MDF5186 FINAL FEE,06/05/2016,418434,219.23,CAP,Tpg Disableaids,51324R
Gloucester City Council,23UE,Docks Complex - Services,RB100,General Repair/Maint Buildings,3000,"unblock sink, Herbert Warehouse",06/05/2016,416511,110,NET,Three Counties Drain Service,44033V
Gloucester City Council,23UE,Herbert Reception Upgrade,RY201,Legal/Survey Fees -Land,2,Building Control Fees,06/05/2016,417081,563,CAP,Stroud District Council,42500D
Gloucester City Council,23UE,REDACTED,REDACTED,REDACTED,REDACTED,REDACTED,06/05/2016,REDACTED,489.44,NET,REDACTED,REDACTED
Gloucester City Council,23UE,REDACTED,REDACTED,REDACTED,REDACTED,REDACTED,06/05/2016,REDACTED,530,NET,REDACTED,REDACTED
Gloucester City Council,23UE,Investment Property,RB500,Contract Cleaning,3620,"Remove Rubbish, Grosvenor House",06/05/2016,416260,350,NET,Enterprise (Aol) Ltd,06695G
Gloucester City Council,23UE,Investment Property,RB500,Fire Fighting Equipment,3008,Eastgate chamber fire risk assessment,06/05/2016,418276,220,NET,Allcoopers Ltd,52921E
Gloucester City Council,23UE,Kings Quarter,RY146,Contract Payments,20,Bus station works,06/05/2016,418225,23620,CAP,Abbey Contracting Ltd,16395R
Gloucester City Council,23UE,Nms Contract,HI102,Contracted Services,6970,Black Bins,06/05/2016,417279,1845.5,NET,Enterprise (Aol) Ltd,06695G
Gloucester City Council,23UE,The Arbor,HC501,Catering Provisions -Food,5110,food,06/05/2016,418402,42.32,NET,Total Produce Gloucester,12645E
Gloucester City Council,23UE,The Arbor,HC501,Catering Provisions -Food,5110,food,06/05/2016,418403,43.54,NET,Total Produce Gloucester,12645E
Gloucester City Council,23UE,The Arbor,HC501,Catering Provisions -Food,5110,food,06/05/2016,418404,11.61,NET,Total Produce Gloucester,12645E
Gloucester City Council,23UE,The Arbor,HC501,Catering Provisions -Food,5110,food,06/05/2016,418405,37.44,NET,Total Produce Gloucester,12645E
Gloucester City Council,23UE,The Arbor,HC501,Catering Provisions -Food,5110,food,06/05/2016,418410,13.03,NET,Total Produce Gloucester,12645E
Gloucester City Council,23UE,The Arbor,HC501,Catering Provisions -Food,5110,food,06/05/2016,418411,14.87,NET,Total Produce Gloucester,12645E
Gloucester City Council,23UE,The Arbor,HC501,Catering Provisions -Food,5110,mixed pepper,06/05/2016,418407,1.35,NET,Total Produce Gloucester,12645E
Gloucester City Council,23UE,Utilities,PT502,Electricity Supply,3110,acct 601980613 YMCA,06/05/2016,418003,260.97,NET,British Gas Business,08301C
Gloucester City Council,23UE,Utilities,PT502,Electricity Supply,3110,Electricity use,06/05/2016,418193,18471.6,NET,West Mercia Energy,11669Z
Gloucester City Council,23UE,Utilities,PT502,Electricity Supply,3110,Gas & Electric FEB16,06/05/2016,417883,1076.07,NET,West Mercia Energy,11669Z
Gloucester City Council,23UE,Utilities,PT502,Electricity Supply,3110,Services 25/03 - 15/04 2016,06/05/2016,418435,25727.51,NET,West Mercia Energy,11669Z
Gloucester City Council,23UE,Utilities,PT502,Gas Supply,3100,acct 601980419 Sebert St,06/05/2016,418002,120.07,NET,British Gas Business,08301C
Gloucester City Council,23UE,Utilities,PT502,Gas Supply,3100,Gas & Electric FEB16,06/05/2016,417883,21222.32,NET,West Mercia Energy,11669Z
Gloucester City Council,23UE,Utilities,PT502,Gas Supply,3100,GAS MAR16,06/05/2016,417695,22732.54,NET,West Mercia Energy,11669Z
Gloucester City Council,23UE,Business Planning & Performanc,RL500,Fees For Services Received,5350,Customer services desk,09/05/2016,416283,10155.12,NET,Itouch Vision Limited,16422P
Gloucester City Council,23UE,Business Transformation & Tech,RT700,Computer Hardware Maintenance,5426,Oracle 12c Upgrade,09/05/2016,418297,5000,NET,Idox Group,07229U
Gloucester City Council,23UE,Business Transformation & Tech,RT700,Computer Software <5000,5425,Customer services desk,09/05/2016,416283,7660.88,NET,Itouch Vision Limited,16422P
Gloucester City Council,23UE,Licences,HE510,Reimbursements,5591,Refund - Wrong geographical area,09/05/2016,418455,21,NET,Cellar Supplies Cheltenham Ltd,01563L
Gloucester City Council,23UE,Planning Policy & Heritage,PT300,Basic Pay - Temporary Staff,2751,temporary staff w/e 17/4/16,09/05/2016,417829,2275.85,NET,The Oyster Partnership Limited,14900T
Gloucester City Council,23UE,Pollution Control,HE300,Fees For Services Received,5350,NO2 tubes,09/05/2016,417946,104.25,NET,Gradko International Ltd,11063B
Gloucester City Council,23UE,Allotments,HI104,Fees For Services Received,5350,White City,10/05/2016,416223,6898,NET,Greenfields Garden Services Ltd,48130G
Gloucester City Council,23UE,Asset Management,RS300,Subscriptions,5600,valuer registration team,10/05/2016,418187,350,NET,Rics Business Services Ltd,50747R
Gloucester City Council,23UE,Business Transformation & Tech,RT700,Computer Hardware <5000,5420,acct 510738402 APR-MAY16,10/05/2016,417481,33,NET,Virgin Media Payments Ltd,09376J
Gloucester City Council,23UE,Business Transformation & Tech,RT700,Internet Service Provider Fees,5429,acct 505653401 MAR16,10/05/2016,416229,80,NET,Virgin Media Payments Ltd,09376J
Gloucester City Council,23UE,Business Transformation & Tech,RT700,Internet Service Provider Fees,5429,acct 505653401 MAY16,10/05/2016,417885,80,NET,Virgin Media Payments Ltd,09376J
Gloucester City Council,23UE,Business Transformation & Tech,RT700,Internet Service Provider Fees,5429,acct 511159201 APR-MAY16,10/05/2016,417480,80,NET,Virgin Media Payments Ltd,09376J
Gloucester City Council,23UE,Business Transformation & Tech,RT700,Internet Service Provider Fees,5429,Charges Apr - May 16,10/05/2016,417334,39,NET,Virgin Media Payments Ltd,09376J
Gloucester City Council,23UE,Business Transformation & Tech,RT700,Internet Service Provider Fees,5429,Charges Broadband  Apr - May 16,10/05/2016,417332,30,NET,Virgin Media Payments Ltd,09376J
Gloucester City Council,23UE,Business Transformation & Tech,RT700,Internet Service Provider Fees,5429,Charges MIA Flexi 16/17,10/05/2016,417333,8500,NET,Virgin Media Business,01869B
Gloucester City Council,23UE,Business Transformation & Tech,RT700,Internet Service Provider Fees,5429,Rental Charges 16/17 GLOUCESTER.GOV.UK,10/05/2016,417335,75,NET,Virgin Media Business,01869B
Gloucester City Council,23UE,Business Transformation & Tech,RT700,Telephones And Fax,5410,acct 510738303 APR16,10/05/2016,417401,16.99,NET,Virgin Media Payments Ltd,09376J
Gloucester City Council,23UE,Civica Contract Revs & Bens,RT250,Fees For Services Received,5350,JUN16 core revs & bens service,10/05/2016,418274,137797,NET,Civica Uk Ltd,10841X
Gloucester City Council,23UE,Civica Fod Contract,RT260,Contracted Services,6970,Year 4 Quarter 2 Apr 16 - Jun 16,10/05/2016,417064,190015.5,NET,Civica Uk Ltd,10841X
Gloucester City Council,23UE,Corporate Expenses,RC110,Subscriptions,5600,LGA subscription 2016/17,10/05/2016,418466,10450,NET,Local Government Association,11683F
Gloucester City Council,23UE,Council Streetcare Team,HI101,Maint Of Grounds - General,3030,Barnwood Park Eastmoor Bench,10/05/2016,418356,384.44,NET,Greenfields Garden Services Ltd,48130G
Gloucester City Council,23UE,Council Streetcare Team,HI101,Maint Of Grounds - General,3030,forklift & operator Westgate Park,10/05/2016,417850,116,NET,Ken Pink Plant Hire Ltd,56884V
Gloucester City Council,23UE,Council Streetcare Team,HI101,Maint Of Grounds - General,3030,Plock Court,10/05/2016,416221,1251,NET,Greenfields Garden Services Ltd,48130G
Gloucester City Council,23UE,Council Streetcare Team,HI101,Maint Of Grounds - General,3030,Plock Court,10/05/2016,416222,2197,NET,Greenfields Garden Services Ltd,48130G
Gloucester City Council,23UE,Council Streetcare Team,HI101,Maint Of Grounds - General,3030,Randwick Park fencing repairs,10/05/2016,418357,318.75,NET,Greenfields Garden Services Ltd,48130G
Gloucester City Council,23UE,Council Streetcare Team,HI101,Maint Of Grounds - General,3030,Tuffley Rovers car park bollard,10/05/2016,418362,638,NET,Greenfields Garden Services Ltd,48130G
Gloucester City Council,23UE,Hackney Carriages,HL100,Fees For Services Received,5350,COURT DEBT FOR COSTS AWARDED,10/05/2016,418495,11875.98,NET,The Sherrifs Office,16933G
Gloucester City Council,23UE,Head Of Regeneration & Eco Dev,GO102,Subscriptions,5600,Springboard Programme,10/05/2016,416192,250,NET,Solace Group,07481F
Gloucester City Council,23UE,REDACTED,REDACTED,REDACTED,REDACTED,REDACTED,10/05/2016,REDACTED,507.69,NET,REDACTED,REDACTED
Gloucester City Council,23UE,REDACTED,REDACTED,REDACTED,REDACTED,REDACTED,10/05/2016,REDACTED,550,NET,REDACTED,REDACTED
Gloucester City Council,23UE,Investment Property,RB500,Fire Fighting Equipment,3008,Dry riser takeover,10/05/2016,416519,313.47,NET,Allcoopers Ltd,52921E
Gloucester City Council,23UE,Investment Property,RB500,General Repair/Maint Buildings,3000,EASTGATE MARKET WORKS,10/05/2016,417572,110,NET,Three Counties Drain Service,44033V
Gloucester City Council,23UE,Investment Property,RB500,General Repair/Maint Buildings,3000,Engineer Services,10/05/2016,415998,412,NET,Cooltherm,06087Z
Gloucester City Council,23UE,Investment Property,RB500,General Repair/Maint Buildings,3000,Engineer Services,10/05/2016,415999,212,NET,Cooltherm,06087Z
Gloucester City Council,23UE,Investment Property,RB500,Lift Maintenance,3051,Guildhall lift works,10/05/2016,417954,5507.08,NET,Pickerings Europe Ltd,58816U
Gloucester City Council,23UE,Kings Quarter,RY146,Contract Payments,20,disconnect 4 x supplies Bentinck Hse,10/05/2016,417818,3334.23,CAP,Western Power Distribution,13058T
Gloucester City Council,23UE,Kings Quarter,RY146,Contract Payments,20,Grosvenor Hse window graphics,10/05/2016,418267,950,CAP,Hanman Split Ltd,56889J
Gloucester City Council,23UE,Off Street Car Parks,PP110,Contracted Services,6970,PCNs Q1 2016/13,10/05/2016,417693,395.1,NET,Patrol,09431C
Gloucester City Council,23UE,Off Street Car Parks,PP110,Fees For Services Received,5350,services for parking equipment,10/05/2016,417957,521.34,NET,Parkeon Ltd,03238G
Gloucester City Council,23UE,Parks Contract Management,LP100,Maint Of Grounds - General,3030,HORSBERE MEADOW,10/05/2016,409036,45,NET,Greenfields Garden Services Ltd,48130G
Gloucester City Council,23UE,Parks Contract Management,LP100,Maint Of Grounds - General,3030,HORSBERE MEADOW,10/05/2016,409037,90,NET,Greenfields Garden Services Ltd,48130G
Gloucester City Council,23UE,Parks Contract Management,LP100,Maint Of Grounds - General,3030,HORSBERE MEADOW,10/05/2016,409069,45,NET,Greenfields Garden Services Ltd,48130G
Gloucester City Council,23UE,Parks Contract Management,LP100,Maint Of Grounds - General,3030,spray knotweed at Horbere Meadow,10/05/2016,418465,45,NET,Greenfields Garden Services Ltd,48130G
Gloucester City Council,23UE,Parks Contract Management,LP100,Maint Of Grounds - General,3030,spray knotweed Horbere Meadow,10/05/2016,418464,45,NET,Greenfields Garden Services Ltd,48130G
Gloucester City Council,23UE,Registration Of Electors,RS400,Fees For Services Received,5350,table & chair hire for Local elections,10/05/2016,417847,1684.75,NET,Furniture Hire Uk,15526K
Gloucester City Council,23UE,Registration Of Electors,RS400,Printing,5300,March IER Mailings,10/05/2016,417056,187.25,NET,Alpha Response Print & Mail Ltd,03029U
Gloucester City Council,23UE,Registration Of Electors,RS400,Printing,5300,May Poll Cards,10/05/2016,417057,3598,NET,Alpha Response Print & Mail Ltd,03029U
Gloucester City Council,23UE,16 Commercial Road,RB539,General Repair/Maint Buildings,3000,CDM fees 16 Commercial rd,11/05/2016,418566,300,NET,Goddard Consulting Llp,10598G
Gloucester City Council,23UE,Aspire Admin Charges,LC105,Contracted Services,6970,MAY16 management feesT,11/05/2016,418552,38125.58,NET,Aspire Sports & Cultural Trust,08135V
Gloucester City Council,23UE,Business Transformation & Tech,RT700,Computer Consumables,5422,"17"" monitor",11/05/2016,418549,213.6,NET,Dell Computers Corporation Ltd,55920C
Gloucester City Council,23UE,Business Transformation & Tech,RT700,Computer Consumables,5422,displayports,11/05/2016,418497,73.02,NET,Dell Computers Corporation Ltd,55920C
Gloucester City Council,23UE,Business Transformation & Tech,RT700,Computer Software Maintenance,5427,CCN007a year 2,11/05/2016,418492,2456.83,NET,Civica Uk Ltd,10841X
Gloucester City Council,23UE,Business Transformation & Tech,RT700,Computer Software Maintenance,5427,govdelivery JUN16-MAY17,11/05/2016,418500,12492,NET,Govdelivery,13943H
Gloucester City Council,23UE,Cemeteries,HC300,Purch Vehicles/M. Plant <5000,4000,chainsaw service,11/05/2016,418563,35.53,NET,Garden Machinery Gloucester,55641K
Gloucester City Council,23UE,Cemeteries,HC300,Routine R And M - Vehicles,4011,machinery cleaner,11/05/2016,418562,94.98,NET,Garden Machinery Gloucester,55641K
Gloucester City Council,23UE,Cemeteries,HC300,Routine R And M - Vehicles,4011,rotating beacons,11/05/2016,418505,340,NET,T H White Ltd,08413P
Gloucester City Council,23UE,City Museum Catering,LM202,Catering Provisions -Food,5110,MILK,11/05/2016,418546,4.76,NET,Total Produce Gloucester,12645E
Gloucester City Council,23UE,City Museum Catering,LM202,Catering Provisions -Food,5110,MILK,11/05/2016,418550,4.76,NET,Total Produce Gloucester,12645E
Gloucester City Council,23UE,Civic Admin And Hospitality,RC210,Routine R And M - Vehicles,4011,MOT & battery,11/05/2016,418567,130.83,NET,John Dandy Motors,13690P
Gloucester City Council,23UE,Contact Centre,RB300,Other Minor Supplies Services,5590,out of hours call monitoring MAR16,11/05/2016,418520,290.6,NET,Worcestershire Telecare,16419C
Gloucester City Council,23UE,Crematorium Vehicles,HY049,Purchase Of Vehicles >5000,40,Ferris Mower,11/05/2016,418504,35560,CAP,T H White Ltd,08413P
Gloucester City Council,23UE,Development Management,PT200,Advertising And Publicity,5702,adverts 28/4/16,11/05/2016,418533,146.08,NET,Local World Ltd,08556P
Gloucester City Council,23UE,Docks Complex - Catering Servs,RB110,Catering Provisions -Food,5110,food,11/05/2016,418382,70.23,NET,Total Produce Gloucester,12645E
Gloucester City Council,23UE,Docks Complex - Catering Servs,RB110,Catering Provisions -Food,5110,food,11/05/2016,418385,16.05,NET,Total Produce Gloucester,12645E
Gloucester City Council,23UE,Docks Complex - Catering Servs,RB110,Catering Provisions -Food,5110,food,11/05/2016,418388,47.13,NET,Total Produce Gloucester,12645E
Gloucester City Council,23UE,Docks Complex - Catering Servs,RB110,Catering Provisions -Food,5110,food,11/05/2016,418389,21.23,NET,Total Produce Gloucester,12645E
Gloucester City Council,23UE,Docks Complex - Catering Servs,RB110,Catering Provisions -Food,5110,food,11/05/2016,418390,64.13,NET,Total Produce Gloucester,12645E
Gloucester City Council,23UE,Docks Complex - Catering Servs,RB110,Catering Provisions -Food,5110,food,11/05/2016,418391,46.98,NET,Total Produce Gloucester,12645E
Gloucester City Council,23UE,Docks Complex - Catering Servs,RB110,Catering Provisions -Food,5110,food,11/05/2016,418393,38.26,NET,Total Produce Gloucester,12645E
Gloucester City Council,23UE,Docks Complex - Catering Servs,RB110,Catering Provisions -Food,5110,food,11/05/2016,418394,54.15,NET,Total Produce Gloucester,12645E
Gloucester City Council,23UE,Docks Complex - Catering Servs,RB110,Catering Provisions -Food,5110,food,11/05/2016,418395,56.62,NET,Total Produce Gloucester,12645E
Gloucester City Council,23UE,Docks Complex - Catering Servs,RB110,Catering Provisions -Food,5110,food,11/05/2016,418397,13.65,NET,Total Produce Gloucester,12645E
Gloucester City Council,23UE,Docks Complex - Catering Servs,RB110,Catering Provisions -Food,5110,food,11/05/2016,418398,39.96,NET,Total Produce Gloucester,12645E
Gloucester City Council,23UE,Docks Complex - Catering Servs,RB110,Catering Provisions -Food,5110,food,11/05/2016,418399,29.56,NET,Total Produce Gloucester,12645E
Gloucester City Council,23UE,Docks Complex - Catering Servs,RB110,Catering Provisions -Food,5110,food,11/05/2016,418400,39.29,NET,Total Produce Gloucester,12645E
Gloucester City Council,23UE,Docks Complex - Catering Servs,RB110,Catering Provisions -Food,5110,food,11/05/2016,418401,32.96,NET,Total Produce Gloucester,12645E
Gloucester City Council,23UE,Docks Complex - Catering Servs,RB110,Catering Provisions -Food,5110,milk,11/05/2016,418386,8.64,NET,Total Produce Gloucester,12645E
Gloucester City Council,23UE,Docks Complex - Catering Servs,RB110,Catering Provisions -Food,5110,milk,11/05/2016,418387,8.04,NET,Total Produce Gloucester,12645E
Gloucester City Council,23UE,Docks Complex - Catering Servs,RB110,Catering Provisions -Food,5110,milk,11/05/2016,418392,8.64,NET,Total Produce Gloucester,12645E
Gloucester City Council,23UE,Docks Complex - Catering Servs,RB110,Catering Provisions -Food,5110,milk,11/05/2016,418396,16.68,NET,Total Produce Gloucester,12645E
Gloucester City Council,23UE,Docks Complex - Catering Servs,RB110,Catering Provisions -Food,5110,milk,11/05/2016,418406,8.64,NET,Total Produce Gloucester,12645E
Gloucester City Council,23UE,Docks Complex - Catering Servs,RB110,Sale Of Council Products,9220,buffet,11/05/2016,418488,379.2,NET,Janes Pantry,24500W
Gloucester City Council,23UE,Docks Complex - Catering Servs,RB110,Sale Of Council Products,9220,buffet,11/05/2016,418489,32.64,NET,Janes Pantry,24500W
Gloucester City Council,23UE,Docks Complex - Catering Servs,RB110,Sale Of Council Products,9220,buffet,11/05/2016,418490,102,NET,Janes Pantry,24500W
Gloucester City Council,23UE,Docks Complex - Services,RB100,Catering Provisions -Food,5110,milk,11/05/2016,418201,8.64,NET,Total Produce Gloucester,12645E
Gloucester City Council,23UE,Docks Complex - Services,RB100,Catering Provisions -Food,5110,milk,11/05/2016,418202,16.68,NET,Total Produce Gloucester,12645E
Gloucester City Council,23UE,Dog Warden,HE400,Fees For Services Received,5350,FEB16 dog warden,11/05/2016,418538,1871.95,NET,Bromsgrove District Council,15754U
Gloucester City Council,23UE,Dog Warden,HE400,Fees For Services Received,5350,MAR16 dog warden,11/05/2016,418540,2798.04,NET,Bromsgrove District Council,15754U
Gloucester City Council,23UE,Eastgate Rooftop Emerg Works,RY159,Legal/Survey Fees -Land,2,interim payment 2 Eastgate car park,11/05/2016,418537,242727.99,CAP,Universal Sealants (Uk) Ltd,15743Z
Gloucester City Council,23UE,General Works Fund,RY203,Contract Payments,20,adverts 5/5/16,11/05/2016,418501,87.65,CAP,Local World Ltd,08556P
Gloucester City Council,23UE,Grants To Voluntary Sector,FG100,Members Allocation Fund,7100F,members grant - Hansdot,11/05/2016,418494,500,NET,Gfm,08553W
Gloucester City Council,23UE,Guildhall Bar And Caf�,LA210,Catering Provisions -Food,5110,catering 19/4/16,11/05/2016,418557,330,NET,Catercater Ltd,08620G
Gloucester City Council,23UE,Guildhall Events,LA200,Advertising And Publicity,5702,Guildhall adverts 2016/17,11/05/2016,418261,6950,NET,Soglos,07953J
Gloucester City Council,23UE,Guildhall Events,LA200,Fees For Services Received,5350,Thatcher Stole My Trousers,11/05/2016,418561,139.4,NET,F O H Marketing,16464X
Gloucester City Council,23UE,REDACTED,REDACTED,REDACTED,REDACTED,REDACTED,11/05/2016,REDACTED,300,NET,REDACTED,REDACTED
Gloucester City Council,23UE,REDACTED,REDACTED,REDACTED,REDACTED,REDACTED,11/05/2016,REDACTED,370.1,NET,REDACTED,REDACTED
Gloucester City Council,23UE,Head Of Regeneration & Eco Dev,GO102,Conference/Meeting Expenses,5510,delegate to BCSC 2016,11/05/2016,418555,350,NET,Bcsc,15785G
Gloucester City Council,23UE,Homelessness,CH120,Rent In Advance,5516,RIA & DEPOSIT,11/05/2016,418576,272.72,NET,Shanghai Restaurant,16938W
Gloucester City Council,23UE,Homelessness Prevention,CH122,Fees For Services Received,5350,RIA & DEPOSIT ,11/05/2016,418576,385,NET,Shanghai Restaurant,16938W
Gloucester City Council,23UE,Planning Policy & Heritage,PT300,Exhibits And Collections,5038,interpretation boards,11/05/2016,418522,2340,NET,Alpha Colour Printers Ltd,00945B
Gloucester City Council,23UE,Retail Market - Landlord,HM300,Operational Equipment <5000,5012,compactor rental,11/05/2016,418573,280.56,NET,System Rental Uk Ltd,03239E
Gloucester City Council,23UE,Safer Stronger Communities,FP841,Other Minor Supplies Services,5590,paws on patrol rosettes,11/05/2016,418542,74,NET,Cottage Rosettes,12753G
Gloucester City Council,23UE,Safer Stronger Communities,FP841,Other Minor Supplies Services,5590,Quack Pack Paws on  Patrol 2016,11/05/2016,418568,650,NET,REDACTED,REDACTED
Gloucester City Council,23UE,REDACTED,REDACTED,REDACTED,REDACTED,REDACTED,11/05/2016,REDACTED,530,NET,REDACTED,REDACTED
Gloucester City Council,23UE,The Fleece,RB530,General Repair/Maint Buildings,3000,CDM fees Fleece Hotel,11/05/2016,418565,650,NET,Goddard Consulting Llp,10598G
Gloucester City Council,23UE,Unallocated It,RY525,Contract Payments,20,travel expenses,11/05/2016,417950,177.76,CAP,Civica Uk Ltd,10841X
Gloucester City Council,23UE,Blackfriars,LA609,Room Hire,9410,CAMRA beer festival 2016 room rental,12/05/2016,418525,600,NET,Gloucestershire County Council,18650D
Gloucester City Council,23UE,Building Control,PT400,Fees For Services Received,5350,Building Control Partnership,12/05/2016,417080,47900.31,NET,Stroud District Council,42500D
Gloucester City Council,23UE,Development Management,PT200,Basic Pay - Temporary Staff,2751,temp staff w/e 10/4/16 ,12/05/2016,418515,1400,NET,The Oyster Partnership Limited,14900T
Gloucester City Council,23UE,Development Management,PT200,Basic Pay - Temporary Staff,2751,temp staff w/e 17/4/16 ,12/05/2016,418516,1201.4,NET,The Oyster Partnership Limited,14900T
Gloucester City Council,23UE,Development Management,PT200,Basic Pay - Temporary Staff,2751,temp staff w/e 24/4/16 ,12/05/2016,418517,1220,NET,The Oyster Partnership Limited,14900T
Gloucester City Council,23UE,Development Management,PT200,Basic Pay - Temporary Staff,2751,tem staff w/e 1/5/16,12/05/2016,418530,1299.6,NET,The Oyster Partnership Limited,14900T
Gloucester City Council,23UE,Development Management,PT200,Fees For Services Received,5350,Winneycroft Lane viability - interim,12/05/2016,418135,2600,NET,Peter Brett Associates Llp,16459P
Gloucester City Council,23UE,General Works Fund,RY203,Remedial Works,22,Crem phase 2 asbestos removal,12/05/2016,416563,2222,CAP,Maylarch Environmental Ltd,16398J
Gloucester City Council,23UE,Guildhall Bar And Caf�,LA210,Catering Provisions -Food,5110,milk,12/05/2016,418199,4.4,NET,Total Produce Gloucester,12645E
Gloucester City Council,23UE,Guildhall Bar And Caf�,LA210,Catering Provisions -Food,5110,milk,12/05/2016,418343,4.76,NET,Total Produce Gloucester,12645E
Gloucester City Council,23UE,Guildhall Bar And Caf�,LA210,Catering Provisions -Food,5110,milk,12/05/2016,418344,4.76,NET,Total Produce Gloucester,12645E
Gloucester City Council,23UE,Guildhall Bar And Caf�,LA210,Catering Provisions -Food,5110,milk,12/05/2016,418345,4.76,NET,Total Produce Gloucester,12645E
Gloucester City Council,23UE,Guildhall Bar And Caf�,LA210,Catering Provisions -Food,5110,milk,12/05/2016,418346,4.76,NET,Total Produce Gloucester,12645E
Gloucester City Council,23UE,Guildhall Bar And Caf�,LA210,Catering Provisions -Food,5110,milk,12/05/2016,418347,4.76,NET,Total Produce Gloucester,12645E
Gloucester City Council,23UE,Guildhall Bar And Caf�,LA210,Catering Provisions -Food,5110,milk,12/05/2016,418348,4.76,NET,Total Produce Gloucester,12645E
Gloucester City Council,23UE,Guildhall Bar And Caf�,LA210,Catering Provisions -Food,5110,milk,12/05/2016,418349,4.76,NET,Total Produce Gloucester,12645E
Gloucester City Council,23UE,Guildhall Bar And Caf�,LA210,Catering Provisions -Food,5110,milk,12/05/2016,418350,4.76,NET,Total Produce Gloucester,12645E
Gloucester City Council,23UE,Guildhall Bar And Caf�,LA210,Catering Provisions -Food,5110,milk,12/05/2016,418351,4.76,NET,Total Produce Gloucester,12645E
Gloucester City Council,23UE,Guildhall Bar And Caf�,LA210,Catering Provisions -Food,5110,milk,12/05/2016,418352,4.76,NET,Total Produce Gloucester,12645E
Gloucester City Council,23UE,Guildhall Bar And Caf�,LA210,Catering Provisions -Food,5110,milk,12/05/2016,418353,4.76,NET,Total Produce Gloucester,12645E
Gloucester City Council,23UE,Guildhall Bar And Caf�,LA210,Catering Provisions -Food,5110,milk,12/05/2016,418376,4.76,NET,Total Produce Gloucester,12645E
Gloucester City Council,23UE,Guildhall Bar And Caf�,LA210,Catering Provisions -Food,5110,milk,12/05/2016,418377,4.76,NET,Total Produce Gloucester,12645E
Gloucester City Council,23UE,Guildhall Bar And Caf�,LA210,Catering Provisions -Food,5110,milk,12/05/2016,418378,4.76,NET,Total Produce Gloucester,12645E
Gloucester City Council,23UE,Guildhall Bar And Caf�,LA210,Catering Provisions -Food,5110,milk,12/05/2016,418379,4.76,NET,Total Produce Gloucester,12645E
Gloucester City Council,23UE,Guildhall Bar And Caf�,LA210,Catering Provisions -Food,5110,milk,12/05/2016,418380,4.76,NET,Total Produce Gloucester,12645E
Gloucester City Council,23UE,Guildhall Bar And Caf�,LA210,Catering Provisions -Food,5110,milk,12/05/2016,418381,9.52,NET,Total Produce Gloucester,12645E
Gloucester City Council,23UE,Guildhall Bar And Caf�,LA210,Catering Provisions -Food,5110,milk,12/05/2016,418383,4.76,NET,Total Produce Gloucester,12645E
Gloucester City Council,23UE,Guildhall Bar And Caf�,LA210,Catering Provisions -Food,5110,milk,12/05/2016,418384,4.76,NET,Total Produce Gloucester,12645E
Gloucester City Council,23UE,Guildhall Bar And Caf�,LA210,Catering Provisions -Liquor,5111,beergas APR16,12/05/2016,418263,54.36,NET,Boc Ltd,59172L
Gloucester City Council,23UE,REDACTED,REDACTED,REDACTED,REDACTED,REDACTED,12/05/2016,REDACTED,600,NET,REDACTED,REDACTED
Gloucester City Council,23UE,Head Of Regeneration & Eco Dev,GO102,Printing,5300,"courier items to Paju City Hall, S Korea",12/05/2016,418005,175.58,NET,Tnt Uk Ltd,50728V
Gloucester City Council,23UE,REDACTED,REDACTED,REDACTED,REDACTED,REDACTED,12/05/2016,REDACTED,588.52,NET,REDACTED,REDACTED
Gloucester City Council,23UE,REDACTED,REDACTED,REDACTED,REDACTED,REDACTED,12/05/2016,REDACTED,500,NET,REDACTED,REDACTED
Gloucester City Council,23UE,Human Resources,EH100,Fees For Services Received,5350,Payroll Monthly Charges March 16,12/05/2016,417340,2628.65,NET,Gloucestershire County Council,18650D
Gloucester City Council,23UE,Licences,HE510,Gating Orders,5541,Organs Alley gate,12/05/2016,418564,360,NET,Gloucester Street Forge,11069C
Gloucester City Council,23UE,Managing Director,RE100,Subscriptions,5600,Subscription,12/05/2016,418606,249,NET,Emap Publishing Ltd,16461D
Gloucester City Council,23UE,REDACTED,REDACTED,REDACTED,REDACTED,REDACTED,12/05/2016,REDACTED,800,NET,REDACTED,REDACTED
Gloucester City Council,23UE,Pollution Control,HE300,Fees For Services Received,5350,Ford KA removal and disposal,12/05/2016,418371,80,NET,Harry Buckland,16135W
Gloucester City Council,23UE,Pollution Control,HE300,Fees For Services Received,5350,Ford KA removal & disposal,12/05/2016,418373,80,NET,Harry Buckland,16135W
Gloucester City Council,23UE,Pollution Control,HE300,Fees For Services Received,5350,Renault Clio removal and disposal,12/05/2016,418372,100,NET,Harry Buckland,16135W
Gloucester City Council,23UE,Pollution Control,HE300,Fees For Services Received,5350,Renault Laguna collection & disposal,12/05/2016,418369,160,NET,Harry Buckland,16135W
Gloucester City Council,23UE,Pollution Control,HE300,Fees For Services Received,5350,Renault Megan removal & disposal,12/05/2016,418368,300,NET,Harry Buckland,16135W
Gloucester City Council,23UE,Pollution Control,HE300,Fees For Services Received,5350,Rover collection & disposal,12/05/2016,418370,80,NET,Harry Buckland,16135W
Gloucester City Council,23UE,Pollution Control,HE300,Fees For Services Received,5350,VW Polo removel & disposal,12/05/2016,418374,80,NET,Harry Buckland,16135W
Gloucester City Council,23UE,Programme Of Works Cem&Crem,HY045,Purchase Cost -Land,1,Access Scaffolding,12/05/2016,416148,76,CAP,King Scaffolding Ltd,16240Y
Gloucester City Council,23UE,Safer Stronger Communities,FP841,Other Minor Supplies Services,5590,medical cover for 7/5/16,12/05/2016,414817,320.4,NET,White Star Medical,15747R
Gloucester City Council,23UE,Statutory Testing,RS310,Fees For Services Received,5350,MAY16-MAY16 service contract,12/05/2016,418559,288.12,NET,Chubb Fire & Security Ltd,54582K
Gloucester City Council,23UE,Blackfriars,LA609,Recycling,3631,Guildhall recycling,13/05/2016,417995,38,NET,Printwaste Recycling,57114W
Gloucester City Council,23UE,Cemeteries,HC300,Clothing,5200,workwear,13/05/2016,418518,82.96,NET,Safpro Industrial Supply Co,39190W
Gloucester City Council,23UE,Cemeteries,HC300,Clothing,5200,workwear,13/05/2016,418572,46.35,NET,Safpro Industrial Supply Co,39190W
Gloucester City Council,23UE,Cemeteries,HC300,Maint Of Grounds - General,3030,gellup bioograde amenity,13/05/2016,418536,147.5,NET,Rigby Taylor Ltd,37605G
Gloucester City Council,23UE,Cemeteries,HC300,Operational Materials,5070,various goods,13/05/2016,418575,72.97,NET,Spaldings,48759Y
Gloucester City Council,23UE,Cemeteries,HC300,Routine R And M - Vehicles,4011,chipper service,13/05/2016,418527,275,NET,T H White Ltd,08413P
Gloucester City Council,23UE,Client Revs & Bens Contract,RT240,Fees For Services Received,5350,LADS programme IT costs,13/05/2016,418531,2014.64,NET,Civica Uk Ltd,10841X
Gloucester City Council,23UE,Council Streetcare Team,HI101,Maint Of Grounds - General,3030,Estcourt Cardens Allotments kissing gate,13/05/2016,418358,294.85,NET,Greenfields Garden Services Ltd,48130G
Gloucester City Council,23UE,Council Streetcare Team,HI101,Maint Of Grounds - General,3030,long shackle padlock,13/05/2016,418291,90.78,NET,Gloucester Locksmiths,18160C
Gloucester City Council,23UE,Council Streetcare Team,HI101,Window Cleaning,3610,viewing chamber cleaning,13/05/2016,418498,130,NET,Poles Apart Window Cleaning,11636R
Gloucester City Council,23UE,Council Streetcare Team,HI101,Window Cleaning,3610,viewing chamber cleaning,13/05/2016,418499,130,NET,Poles Apart Window Cleaning,11636R
Gloucester City Council,23UE,Countryside Unit,LP201,Publications,5060,floodplain meadows book,13/05/2016,418535,14.49,NET,Nhbs Ltd,57405F
Gloucester City Council,23UE,Docks Complex - Catering Servs,RB110,Catering Provisions -Food,5110,WATER for election count,13/05/2016,418506,48,NET,Total Produce Gloucester,12645E
Gloucester City Council,23UE,Docks Complex - Services,RB100,Recycling,3631,blackfriars recycling,13/05/2016,418570,26,NET,Printwaste Recycling,57114W
Gloucester City Council,23UE,Docks Complex - Services,RB100,Recycling,3631,Blackfriars recycling,13/05/2016,417329,2,NET,Printwaste Recycling,57114W
Gloucester City Council,23UE,Docks Complex - Services,RB100,Recycling,3631,docks recycling,13/05/2016,418519,112.8,NET,Printwaste Recycling,57114W
Gloucester City Council,23UE,Docks Complex - Services,RB100,Recycling,3631,docks recycling,13/05/2016,418571,37.8,NET,Printwaste Recycling,57114W
Gloucester City Council,23UE,Flooding And Drainage,HE306,Maint Of Grounds - General,3030,Header wall repairs,13/05/2016,418502,1839.42,NET,Mr M G Horton T/A H&T Property Maintenance,09210X
Gloucester City Council,23UE,Flooding And Drainage,HE306,Maint Of Grounds - General,3030,Horsebere Brook works,13/05/2016,418493,180,NET,Rdb Safety Boat Ltd,13507J
Gloucester City Council,23UE,General Drainage Works,PY241,Contract Payments,20,meadow mixture,13/05/2016,418534,33.4,CAP,Emorsgate Seeds,51628R
Gloucester City Council,23UE,Homelessness,CH120,Rent In Advance,5516,RIA & Deposit,13/05/2016,418608,489.44,NET,Surelet,06858N
Gloucester City Council,23UE,Homelessness Prevention,CH122,Fees For Services Received,5350,RIA & Deposit,13/05/2016,418608,530,NET,Surelet,06858N
Gloucester City Council,23UE,Investment Property,RB500,Lift Maintenance,3051,Engineer 26/02/2016,13/05/2016,417342,75,NET,Pickerings Europe Ltd,58816U
Gloucester City Council,23UE,Investment Property,RB500,Lift Maintenance,3051,Engineer 30/03/2016,13/05/2016,417341,93.75,NET,Pickerings Europe Ltd,58816U
Gloucester City Council,23UE,Nms Contract,HI102,Additional Non-Tender Items,6973,plastic bottle labels,13/05/2016,418558,201,NET,Eurolabel,10252Z
Gloucester City Council,23UE,Retail Market - Landlord,HM300,Cleaning / Domestic Equipment,5011,towel hire MAY16,13/05/2016,418184,20.52,NET,Initial Washroom Solutions,06143R
Gloucester City Council,23UE,Unallocated It,RY525,Contract Payments,20,travel expenses,13/05/2016,417949,158.4,CAP,Civica Uk Ltd,10841X
Gloucester City Council,23UE,REDACTED,REDACTED,REDACTED,REDACTED,REDACTED,16/05/2016,REDACTED,368.2,NET,REDACTED,REDACTED
Gloucester City Council,23UE,Blackfriars Weddings,LA220,Catering Provisions -Liquor,5111,Prosecco,17/05/2016,418736,40.74,NET,Cellar Supplies Cheltenham Ltd,01563L
Gloucester City Council,23UE,Business Transformation & Tech,RT700,Computer Hardware <5000,5420,SAMX licence,17/05/2016,418526,6410,NET,Civica Services Ltd,58099E
Gloucester City Council,23UE,Business Transformation & Tech,RT700,Mobile Phones,5409,acct 5500385 business data charges,17/05/2016,418528,340.4,NET,O2 Uk,16206Y
Gloucester City Council,23UE,Business Transformation & Tech,RT700,Mobile Phones,5409,acct 5500385 line rantal charges,17/05/2016,418509,535.18,NET,O2 Uk,16206Y
Gloucester City Council,23UE,Business Transformation & Tech,RT700,Mobile Phones,5409,acct 5500388 chargers,17/05/2016,418510,16.68,NET,O2 Uk,16206Y
Gloucester City Council,23UE,Business Transformation & Tech,RT700,Mobile Phones,5409,acct 5500388 Galaxy A3,17/05/2016,418508,261.64,NET,O2 Uk,16206Y
Gloucester City Council,23UE,Business Transformation & Tech,RT700,Mobile Phones,5409,acct 5500388 Galaxy A3 & chargers,17/05/2016,418507,1669.92,NET,O2 Uk,16206Y
Gloucester City Council,23UE,Business Transformation & Tech,RT700,Printing,5300,Prints,17/05/2016,417307,29177.86,NET,Danwood Group Limited,09555G
Gloucester City Council,23UE,Business Transformation & Tech,RT700,Telephones And Fax,5410,Call Charges March 2016,17/05/2016,417258,3959.81,NET,Gamma Business Communications,10260A
Gloucester City Council,23UE,Business Transformation & Tech,RT700,Telephones And Fax,5410,WhosOn Cloud SMB APR16-APR17,17/05/2016,417496,840,NET,Parker Software,14223T
Gloucester City Council,23UE,Celebratory Lights,LT302,Christmas Lights,5024,tipper hire,17/05/2016,418523,489,NET,Ken Pink Plant Hire Ltd,56884V
Gloucester City Council,23UE,City Centre Cctv System,PY275,Contract Payments,20,CCTV consultancy work,17/05/2016,418753,2625,CAP,Rjh Technical Consultancy Ltd,14236M
Gloucester City Council,23UE,City Museum And Art Gallery,LM200,Security Services Fees,5351,Intruder Redcare,17/05/2016,418745,317.28,NET,Secom Plc,51471A
Gloucester City Council,23UE,City Museum And Art Gallery,LM200,Security Services Fees,5351,Quarterly Rental Maintenance,17/05/2016,418744,46.31,NET,Secom Plc,51471A
Gloucester City Council,23UE,Civica Admin Charges,RT105,Postages,5400,Post 18/04 - 29/04 2016,17/05/2016,418697,1221.66,NET,Royal Mail S.Wales & South West,35830S
Gloucester City Council,23UE,Council Streetcare Team,HI101,Maint Of Grounds - General,3030,PC Makrolon,17/05/2016,417951,51,NET,Haden-Browne Plastics,19810W
Gloucester City Council,23UE,Countryside Unit,LP201,Maint Of Grounds - General,3030,Various Items,17/05/2016,418643,161,NET,Metrosigns 200 (Bedford) Ltd,16385U
Gloucester City Council,23UE,Crematorium,HC200,Repair/Maint Of Fixed Plant,3006,Welland Oak,17/05/2016,418655,240,NET,P & L Manufacturing,57600F
Gloucester City Council,23UE,Development Management,PT200,Charges For Services,9300,Refund 16/00205/FUL,17/05/2016,418756,77,NET,Housing 21 Ltd,92214RV
Gloucester City Council,23UE,Disabled Facilities Grants,CY013,Disabled Facility Grants,74,"Disabled Facilities Grant, MDF5185",17/05/2016,418757,6460.78,CAP,Mears Home Improvement Ltd,00096G
Gloucester City Council,23UE,Docks Complex - Catering Servs,RB110,Catering Provisions -Food,5110,Food,17/05/2016,418659,8.54,NET,Janes Pantry,24500W
Gloucester City Council,23UE,Docks Complex - Catering Servs,RB110,Catering Provisions -Food,5110,Food,17/05/2016,418660,8.06,NET,Janes Pantry,24500W
Gloucester City Council,23UE,Docks Complex - Catering Servs,RB110,Catering Provisions -Food,5110,Food,17/05/2016,418661,8.57,NET,Janes Pantry,24500W
Gloucester City Council,23UE,Docks Complex - Catering Servs,RB110,Catering Provisions -Food,5110,Food,17/05/2016,418662,11.32,NET,Janes Pantry,24500W
Gloucester City Council,23UE,Docks Complex - Catering Servs,RB110,Catering Provisions -Food,5110,Food,17/05/2016,418663,14.66,NET,Janes Pantry,24500W
Gloucester City Council,23UE,Docks Complex - Catering Servs,RB110,Catering Provisions -Food,5110,Food,17/05/2016,418664,5.33,NET,Janes Pantry,24500W
Gloucester City Council,23UE,Docks Complex - Catering Servs,RB110,Catering Provisions -Food,5110,Food,17/05/2016,418665,7.99,NET,Janes Pantry,24500W
Gloucester City Council,23UE,Docks Complex - Catering Servs,RB110,Catering Provisions -Food,5110,Food,17/05/2016,418666,9.21,NET,Janes Pantry,24500W
Gloucester City Council,23UE,Docks Complex - Catering Servs,RB110,Catering Provisions -Food,5110,Food,17/05/2016,418667,7.3,NET,Janes Pantry,24500W
Gloucester City Council,23UE,Docks Complex - Catering Servs,RB110,Catering Provisions -Food,5110,Food,17/05/2016,418668,16.12,NET,Janes Pantry,24500W
Gloucester City Council,23UE,Docks Complex - Catering Servs,RB110,Catering Provisions -Food,5110,Food,17/05/2016,418669,11.48,NET,Janes Pantry,24500W
Gloucester City Council,23UE,Docks Complex - Catering Servs,RB110,Catering Provisions -Food,5110,Food,17/05/2016,418670,11.35,NET,Janes Pantry,24500W
Gloucester City Council,23UE,Docks Complex - Catering Servs,RB110,Catering Provisions -Food,5110,Food,17/05/2016,418671,14.82,NET,Janes Pantry,24500W
Gloucester City Council,23UE,Docks Complex - Catering Servs,RB110,Catering Provisions -Food,5110,Food,17/05/2016,418672,18.34,NET,Janes Pantry,24500W
Gloucester City Council,23UE,Docks Complex - Catering Servs,RB110,Catering Provisions -Food,5110,Food,17/05/2016,418673,8.27,NET,Janes Pantry,24500W
Gloucester City Council,23UE,Docks Complex - Catering Servs,RB110,Catering Provisions -Food,5110,Food,17/05/2016,418674,12.81,NET,Janes Pantry,24500W
Gloucester City Council,23UE,Docks Complex - Catering Servs,RB110,Catering Provisions -Food,5110,Food,17/05/2016,418675,4.34,NET,Janes Pantry,24500W
Gloucester City Council,23UE,Docks Complex - Catering Servs,RB110,Catering Provisions -Food,5110,Food,17/05/2016,418676,6.79,NET,Janes Pantry,24500W
Gloucester City Council,23UE,Docks Complex - Catering Servs,RB110,Catering Provisions -Food,5110,Food,17/05/2016,418677,21.51,NET,Janes Pantry,24500W
Gloucester City Council,23UE,Docks Complex - Catering Servs,RB110,Catering Provisions -Food,5110,Food,17/05/2016,418678,15.12,NET,Janes Pantry,24500W
Gloucester City Council,23UE,Financial Services,RT200,Basic Pay - Temporary Staff,2751,Temporary staff w/e 01/04/2016,17/05/2016,418636,492.6,NET,Hays Specialist Recruitment Ltd,55516P
Gloucester City Council,23UE,Financial Services,RT200,Basic Pay - Temporary Staff,2751,Temporary staff w/e 04/03/2016,17/05/2016,418632,541.86,NET,Hays Specialist Recruitment Ltd,55516P
Gloucester City Council,23UE,Financial Services,RT200,Basic Pay - Temporary Staff,2751,Temporary staff w/e 08/04/2016,17/05/2016,418637,607.56,NET,Hays Specialist Recruitment Ltd,55516P
Gloucester City Council,23UE,Financial Services,RT200,Basic Pay - Temporary Staff,2751,Temporary staff w/e 11/03/2016,17/05/2016,418633,541.87,NET,Hays Specialist Recruitment Ltd,55516P
Gloucester City Council,23UE,Financial Services,RT200,Basic Pay - Temporary Staff,2751,Temporary staff w/e 15/04/2016,17/05/2016,418638,607.55,NET,Hays Specialist Recruitment Ltd,55516P
Gloucester City Council,23UE,Financial Services,RT200,Basic Pay - Temporary Staff,2751,Temporary staff w/e 18/03/2016,17/05/2016,418634,541.88,NET,Hays Specialist Recruitment Ltd,55516P
Gloucester City Council,23UE,Financial Services,RT200,Basic Pay - Temporary Staff,2751,Temporary staff w/e 22/04/2016,17/05/2016,418639,492.61,NET,Hays Specialist Recruitment Ltd,55516P
Gloucester City Council,23UE,Financial Services,RT200,Basic Pay - Temporary Staff,2751,Temporary staff w/e 25/03/2016,17/05/2016,418635,476.19,NET,Hays Specialist Recruitment Ltd,55516P
Gloucester City Council,23UE,Financial Services,RT200,Basic Pay - Temporary Staff,2751,Temporary staff w/e 26/02/2016,17/05/2016,418631,49.26,NET,Hays Specialist Recruitment Ltd,55516P
Gloucester City Council,23UE,Financial Services,RT200,Vocational Training,2970,Exam Fees 02/06/2016,17/05/2016,418630,75,NET,Pitman Training Worcester,16384W
Gloucester City Council,23UE,General Works Fund,RY203,Contract Payments,20,crem flooring,17/05/2016,417953,8990,CAP,Rickard Interiors Limited,16456W
Gloucester City Council,23UE,Gloucester Partnership,FP106,Other Minor Supplies Services,5590,gloucesterpartnership.org.uk 16-18,17/05/2016,417819,80,NET,Icon.Net,52505Z
Gloucester City Council,23UE,Guildhall Bar And Caf�,LA210,Catering Provisions -Food,5110,Food,17/05/2016,418724,116.71,NET,Woodward Foodservice,10714F
Gloucester City Council,23UE,Guildhall Bar And Caf�,LA210,Catering Provisions -Food,5110,Fruit & Veg Mar - Apr 2016,17/05/2016,418725,199.69,NET,Woody'S Fruit & Veg,11798L
Gloucester City Council,23UE,Guildhall Bar And Caf�,LA210,Catering Provisions -Food,5110,Milk,17/05/2016,418726,4.76,NET,Total Produce Gloucester,12645E
Gloucester City Council,23UE,Guildhall Bar And Caf�,LA210,Catering Provisions -Food,5110,Milk,17/05/2016,418727,4.76,NET,Total Produce Gloucester,12645E
Gloucester City Council,23UE,Guildhall Bar And Caf�,LA210,Catering Provisions -Food,5110,Milk,17/05/2016,418728,4.76,NET,Total Produce Gloucester,12645E
Gloucester City Council,23UE,Guildhall Bar And Caf�,LA210,Catering Provisions -Food,5110,Milk,17/05/2016,418729,4.76,NET,Total Produce Gloucester,12645E
Gloucester City Council,23UE,Guildhall Bar And Caf�,LA210,Catering Provisions -Food,5110,Milk,17/05/2016,418730,4.76,NET,Total Produce Gloucester,12645E
Gloucester City Council,23UE,Guildhall Bar And Caf�,LA210,Catering Provisions -Food,5110,Milk,17/05/2016,418731,4.76,NET,Total Produce Gloucester,12645E
Gloucester City Council,23UE,Guildhall Bar And Caf�,LA210,Catering Provisions -Liquor,5111,Drinks,17/05/2016,418700,710.23,NET,Cellar Supplies Cheltenham Ltd,01563L
Gloucester City Council,23UE,Guildhall Cinema,LA202,Hire Of Equipment,5020,film transport fees,17/05/2016,418569,219.59,NET,Nft Logistics Ltd,13505N
Gloucester City Council,23UE,Guildhall Events,LA200,Advertising And Publicity,5702,Guildhall Brochures Apr-May 16,17/05/2016,418640,382.5,NET,Glide Media,58829J
Gloucester City Council,23UE,REDACTED,REDACTED,REDACTED,REDACTED,REDACTED,17/05/2016,REDACTED,100,NET,REDACTED,REDACTED
Gloucester City Council,23UE,Guildhall Events,LA200,Fees For Services Received,5350,Ticket Sales,17/05/2016,418685,1075,NET,Strike A Light,16195B
Gloucester City Council,23UE,REDACTED,REDACTED,REDACTED,REDACTED,REDACTED,17/05/2016,REDACTED,50,NET,REDACTED,REDACTED
Gloucester City Council,23UE,REDACTED,REDACTED,REDACTED,REDACTED,REDACTED,17/05/2016,REDACTED,50,NET,REDACTED,REDACTED
Gloucester City Council,23UE,Marchants,LT108,Materials For Sale,5080,Sales on Tickets February 2016,17/05/2016,418649,1145,NET,Marchants Coaches Ltd,48151Y
Gloucester City Council,23UE,Nms Contract,HI102,Contracted Services,6970,Pension Recharge April 2016,17/05/2016,418645,10331.66,NET,Enterprise (Aol) Ltd,06695G
Gloucester City Council,23UE,Nms Contract,HI102,Contracted Services,6970,Pension recharge MAR16,17/05/2016,418191,10290.19,NET,Enterprise (Aol) Ltd,06695G
Gloucester City Council,23UE,Nms Contract,HI102,Fees For Services Received,5350,room booking re Neighbourhood Services,17/05/2016,418807,262.5,NET,Regency Hotel Westend,16948T
Gloucester City Council,23UE,Parks Contract Management,LP100,Maint Of Grounds - General,3030,football goals,17/05/2016,418556,629,NET,Broxap Ltd,01141U
Gloucester City Council,23UE,Planning Policy & Heritage,PT300,Basic Pay - Temporary Staff,2751,temp staff w/e 1/5/16,17/05/2016,418551,2276.31,NET,The Oyster Partnership Limited,14900T
Gloucester City Council,23UE,Pollution Control,HE300,Fees For Services Received,5350,Collection,17/05/2016,418658,130,NET,Harry Buckland,16135W
Gloucester City Council,23UE,Pollution Control,HE300,Fees For Services Received,5350,MAR16 pollution control,17/05/2016,418539,3090.38,NET,Bromsgrove District Council,15037G
Gloucester City Council,23UE,Registration Of Electors,RS400,Fees For Services Received,5350,polling screens,17/05/2016,418186,735,NET,Cotswold District Council,49331J
Gloucester City Council,23UE,Retail Market - Landlord,HM300,Trade Refuse Collection,3630,Food Waste,17/05/2016,418693,120,NET,B & S Pointon Ltd,06253G
Gloucester City Council,23UE,Retail Market - Landlord,HM300,Window Cleaning,3610,6 Monthly Window Clean May 16,17/05/2016,418683,260,NET,Cornwall Cleaning Services,14050A
Gloucester City Council,23UE,Robinswood All Paths Project,LY162,Contract Payments,20,litter bins,17/05/2016,418544,2510,CAP,Wybone Limited,13540L
Gloucester City Council,23UE,Safer Stronger Communities,FP841,Other Minor Supplies Services,5590,Various Items,17/05/2016,418703,598.5,NET,John Attwooll & Co (Tents) Ltd,01890S
Gloucester City Council,23UE,Superbreak,LT104,Materials For Sale,5080,tickets sold on commission 14/06/2016,17/05/2016,418647,297.17,NET,Superbreak Mini Holidays,00712D
Gloucester City Council,23UE,Superbreak,LT104,Sale Of Goods And Services,9230,tickets sold on commission 14/06/2016,17/05/2016,418647,-24.75,NET,Superbreak Mini Holidays,00712D
Gloucester City Council,23UE,The Arbor,HC501,Catering Provisions -Food,5110,Fairtrade Beans,17/05/2016,417260,326.31,NET,Caffeica Ltd,11923J
Gloucester City Council,23UE,The Arbor,HC501,Catering Provisions -Food,5110,food,17/05/2016,417849,155.78,NET,Janes Pantry,24500W
Gloucester City Council,23UE,The Arbor,HC501,Catering Provisions -Food,5110,food,17/05/2016,418198,103.59,NET,Janes Pantry,24500W
Gloucester City Council,23UE,The Arbor,HC501,Catering Provisions -Food,5110,food,17/05/2016,418364,149.72,NET,Janes Pantry,24500W
Gloucester City Council,23UE,The Arbor,HC501,Catering Provisions -Food,5110,food,17/05/2016,418408,15.94,NET,Total Produce Gloucester,12645E
Gloucester City Council,23UE,The Arbor,HC501,Catering Provisions -Food,5110,food,17/05/2016,418409,60.22,NET,Total Produce Gloucester,12645E
Gloucester City Council,23UE,The Arbor,HC501,Catering Provisions -Food,5110,food,17/05/2016,418491,148.81,NET,Janes Pantry,24500W
Gloucester City Council,23UE,Tic Trading,LT110,Materials For Sale,5080,Various items,17/05/2016,418646,259.16,NET,N & C Building Products Ltd,02054E
Gloucester City Council,23UE,Tic Trading,LT110,Publications For Sale,5064,Various Items,17/05/2016,418648,2825.98,NET,David Whyman Map Sales,02653Z
Gloucester City Council,23UE,Townscape Heritage Initiative,LY145,Contract Payments,20,grant,17/05/2016,418755,9059,CAP,Chobe Holdings,16418E
Gloucester City Council,23UE,Treasury Management,VR110,Brokerage Fees,5951,Cash Deposit,17/05/2016,418699,1246.59,NET,Martin Brokers (Uk) Plc,51416J
Gloucester City Council,23UE,Cemeteries,HC300,Maint Of Grounds - General,3030,Various Items,18/05/2016,418750,315.92,NET,Millington & Ramstedt Ltd,29815S
Gloucester City Council,23UE,Cemeteries,HC300,Operational Materials,5070,Strimmer Cord,18/05/2016,418651,204.8,NET,Spaldings,48759Y
Gloucester City Council,23UE,City Museum And Art Gallery,LM200,Cleaning Materials,3600,cleaning materials,18/05/2016,418553,8.78,NET,Acs Business Supplies Ltd,15791M
Gloucester City Council,23UE,City Museum And Art Gallery,LM200,Operational Equipment <5000,5012,cleaning materials,18/05/2016,418553,22.49,NET,Acs Business Supplies Ltd,15791M
Gloucester City Council,23UE,City Museum Catering,LM202,Cleaning Materials,3600,cleaning materials,18/05/2016,418553,50.87,NET,Acs Business Supplies Ltd,15791M
Gloucester City Council,23UE,City Museum Catering,LM202,Operational Equipment <5000,5012,cleaning materials,18/05/2016,418553,19.91,NET,Acs Business Supplies Ltd,15791M
Gloucester City Council,23UE,Council Streetcare Team,HI101,Maint Of Grounds - General,3030,Repairs,18/05/2016,418749,160,NET,Ermin Plant Hire & Services Ltd,14150V
Gloucester City Council,23UE,Crematorium,HC200,Cleaning Materials,3600,cleaning materials,18/05/2016,418553,98.34,NET,Acs Business Supplies Ltd,15791M
Gloucester City Council,23UE,Docks Complex - Services,RB100,Cleaning Materials,3600,cleaning materials,18/05/2016,418553,625.87,NET,Acs Business Supplies Ltd,15791M
Gloucester City Council,23UE,Folk Museum,LM210,Cleaning Materials,3600,cleaning materials,18/05/2016,418553,46.02,NET,Acs Business Supplies Ltd,15791M
Gloucester City Council,23UE,Gloucester Guildhall,LA100,Cleaning Materials,3600,cleaning materials,18/05/2016,418553,548.38,NET,Acs Business Supplies Ltd,15791M
Gloucester City Council,23UE,REDACTED,REDACTED,REDACTED,REDACTED,REDACTED,18/05/2016,REDACTED,130,NET,REDACTED,REDACTED
Gloucester City Council,23UE,Human Resources,EH100,Fees For Services Received,5350,Payroll Monthly Charges April 2016,18/05/2016,418739,2769.11,NET,Gloucestershire County Council,18650D
Gloucester City Council,23UE,Investment Property,RB500,Gas Fittings Serv/Repair,3052,Servicing/Maintenance,18/05/2016,418747,2151.85,NET,Axiom Building Services,14908A
Gloucester City Council,23UE,Pollution Control,HE300,Fees For Services Received,5350,Collection & Disposal,18/05/2016,418657,80,NET,Harry Buckland,16135W
Gloucester City Council,23UE,Registration Of Electors,RS400,Fees For Services Received,5350,Costs May 2015 election,18/05/2016,417082,5374.64,NET,Tewkesbury Borough Council,43800C
Gloucester City Council,23UE,Registration Of Electors,RS400,Printing,5300,April16 IER mailings,18/05/2016,418342,35.6,NET,Alpha Response Print & Mail Ltd,03029U
Gloucester City Council,23UE,Registration Of Electors,RS400,Printing,5300,MAY16 postal vote packs,18/05/2016,418340,5984.1,NET,Alpha Response Print & Mail Ltd,03029U
Gloucester City Council,23UE,Registration Of Electors,RS400,Printing,5300,May Poll cards & Postal Poll cards,18/05/2016,418341,249.4,NET,Alpha Response Print & Mail Ltd,03029U
Gloucester City Council,23UE,Retail Market - Landlord,HM300,Cleaning Materials,3600,cleaning materials,18/05/2016,418553,372.9,NET,Acs Business Supplies Ltd,15791M
Gloucester City Council,23UE,Retail Market - Landlord,HM300,General Repair/Maint Buildings,3000,cleaning materials,18/05/2016,418553,34.63,NET,Acs Business Supplies Ltd,15791M
Gloucester City Council,23UE,The Arbor,HC501,Cleaning Materials,3600,cleaning materials,18/05/2016,418553,81.37,NET,Acs Business Supplies Ltd,15791M
Gloucester City Council,23UE,Tourism Marketing,LT100,Cleaning Materials,3600,cleaning materials,18/05/2016,418553,24.19,NET,Acs Business Supplies Ltd,15791M
Gloucester City Council,23UE,Vehicles,RS140,Fuel,4012,Fuel,18/05/2016,418696,130.13,NET,Allstar Business Solutions Ltd (Arval),06594A
Gloucester City Council,23UE,Cemeteries,HC300,Basic Pay - Temporary Staff,2751,Temporary staff w/e 01/05/2016,19/05/2016,418687,175.95,NET,Premiere Employment Group Ltd,55468Z
Gloucester City Council,23UE,Civic Admin And Hospitality,RC210,Gifts And Prizes,7150,past mayor/sheriff medal,19/05/2016,417411,2390.06,NET,Thomas Fattorini Ltd,14975J
Gloucester City Council,23UE,Homelessness,CH120,Removal And Storage Fees,5513,storage fees,19/05/2016,417980,79.71,NET,Advanced Removals & Storage Ltd,57142R
Gloucester City Council,23UE,Kings Quarter,RY146,Contract Payments,20,Hoarding Boards,19/05/2016,418701,3949.6,CAP,Hanman Split Ltd,56889J
Gloucester City Council,23UE,Tic Theatre Ticket Sales,LT107,Materials For Sale,5080,Ticket Sales May 16,19/05/2016,418879,29,NET,Kings Theatre,54213X
Gloucester City Council,23UE,Tic Theatre Ticket Sales,LT107,Sale Of Goods And Services,9230,Ticket Sales May 16,19/05/2016,418879,-2.42,NET,Kings Theatre,54213X
Gloucester City Council,23UE,Townscape Heritage Initiative,LY145,Contract Payments,20,grant,19/05/2016,418822,49626,CAP,Kingsdell Properties Ltd,16449T
Gloucester City Council,23UE,Utilities,PT502,Electricity Supply,3110,Unit 22 Eastgate Market,19/05/2016,417118,745.37,NET,Edf Energy,05038Y
Gloucester City Council,23UE,Business Transformation & Tech,RT700,Computer Software <5000,5425,std licence MAY16-MAY17,20/05/2016,418874,1586.63,NET,Oracle Corportation Uk Ltd,06156F
Gloucester City Council,23UE,Business Transformation & Tech,RT700,Computer Software Maintenance,5427,MODERN.GOV MOBILE APP MAY16-APR17,20/05/2016,418870,1000,NET,Modern Mindset Ltd,11065J
Gloucester City Council,23UE,Business Transformation & Tech,RT700,Computer Software Maintenance,5427,Modern.gov support MAY16-APR17,20/05/2016,418869,7010,NET,Modern Mindset Ltd,11065J
Gloucester City Council,23UE,Business Transformation & Tech,RT700,Licences,5703,Payment Portal AMT6635,20/05/2016,418946,2525,NET,Capita Business Services Limited,54095C
Gloucester City Council,23UE,City Museum And Art Gallery,LM200,Advertising And Publicity,5702,Harwell scheme fees,20/05/2016,418933,175,NET,Gloucestershire County Council,18650D
Gloucester City Council,23UE,City Museum And Art Gallery,LM200,Advertising And Publicity,5702,Visitor Guide advert,20/05/2016,417998,160,NET,Marketing Gloucester Ltd,08925E
Gloucester City Council,23UE,City Museum And Art Gallery,LM200,Care Of Collections,5039,Harwell scheme fees,20/05/2016,418933,29,NET,Gloucestershire County Council,18650D
Gloucester City Council,23UE,Contact Centre,RB300,Publications,5060,newspapers APR16,20/05/2016,418861,158.25,NET,Ymk Supermarket,55281U
Gloucester City Council,23UE,Council Streetcare Team,HI101,Maint Of Grounds - General,3030,birdfood,20/05/2016,418931,55.97,NET,Angell Pets Ltd,15773P
Gloucester City Council,23UE,Countryside Unit,LP201,Clothing,5200,EARMUFFS,20/05/2016,418865,13.86,NET,Severnside Safety Supplies Ltd,57132O
Gloucester City Council,23UE,Countryside Unit,LP201,Maint Of Grounds - General,3030,fastenings,20/05/2016,418948,9.92,NET,Screwfix Direct,54672H
Gloucester City Council,23UE,Countryside Unit,LP201,Safety Equipment,5013,EARMUFFS,20/05/2016,418865,33.7,NET,Severnside Safety Supplies Ltd,57132O
Gloucester City Council,23UE,Crematorium,HC200,Memorial Plaques,5053,Tree Plaque,20/05/2016,418897,180,NET,Steel & Stone (York),57204U
Gloucester City Council,23UE,REDACTED,REDACTED,REDACTED,REDACTED,REDACTED,20/05/2016,REDACTED,6452,NET,REDACTED,REDACTED
Gloucester City Council,23UE,Docks Complex - Catering Servs,RB110,Catering Provisions -Food,5110,food,20/05/2016,418945,6.94,NET,Janes Pantry,24500W
Gloucester City Council,23UE,Docks Complex - Services,RB100,General Repair/Maint Buildings,3000,4th floor sink drainage,20/05/2016,418532,255,NET,Three Counties Drain Service,44033V
Gloucester City Council,23UE,Folk Museum,LM210,Advertising And Publicity,5702,Harwell scheme fees,20/05/2016,418933,175,NET,Gloucestershire County Council,18650D
Gloucester City Council,23UE,Folk Museum,LM210,Advertising And Publicity,5702,Visitor Guide advert,20/05/2016,417998,160,NET,Marketing Gloucester Ltd,08925E
Gloucester City Council,23UE,REDACTED,REDACTED,REDACTED,REDACTED,REDACTED,20/05/2016,REDACTED,100,NET,REDACTED,REDACTED
Gloucester City Council,23UE,REDACTED,REDACTED,REDACTED,REDACTED,REDACTED,20/05/2016,REDACTED,100,NET,REDACTED,REDACTED
Gloucester City Council,23UE,REDACTED,REDACTED,REDACTED,REDACTED,REDACTED,20/05/2016,REDACTED,3310.44,NET,REDACTED,REDACTED
Gloucester City Council,23UE,REDACTED,REDACTED,REDACTED,REDACTED,REDACTED,20/05/2016,REDACTED,1623.67,NET,REDACTED,REDACTED
Gloucester City Council,23UE,REDACTED,REDACTED,REDACTED,REDACTED,REDACTED,20/05/2016,REDACTED,1800,NET,REDACTED,REDACTED
Gloucester City Council,23UE,REDACTED,REDACTED,REDACTED,REDACTED,REDACTED,20/05/2016,REDACTED,120,NET,REDACTED,REDACTED
Gloucester City Council,23UE,REDACTED,REDACTED,REDACTED,REDACTED,REDACTED,20/05/2016,REDACTED,200,NET,REDACTED,REDACTED
Gloucester City Council,23UE,REDACTED,REDACTED,REDACTED,REDACTED,REDACTED,20/05/2016,REDACTED,1100,NET,REDACTED,REDACTED
Gloucester City Council,23UE,REDACTED,REDACTED,REDACTED,REDACTED,REDACTED,20/05/2016,REDACTED,450,NET,REDACTED,REDACTED
Gloucester City Council,23UE,REDACTED,REDACTED,REDACTED,REDACTED,REDACTED,20/05/2016,REDACTED,150,NET,REDACTED,REDACTED
Gloucester City Council,23UE,REDACTED,REDACTED,REDACTED,REDACTED,REDACTED,20/05/2016,REDACTED,300,NET,REDACTED,REDACTED
Gloucester City Council,23UE,REDACTED,REDACTED,REDACTED,REDACTED,REDACTED,20/05/2016,REDACTED,200,NET,REDACTED,REDACTED
Gloucester City Council,23UE,REDACTED,REDACTED,REDACTED,REDACTED,REDACTED,20/05/2016,REDACTED,100,NET,REDACTED,REDACTED
Gloucester City Council,23UE,REDACTED,REDACTED,REDACTED,REDACTED,REDACTED,20/05/2016,REDACTED,150,NET,REDACTED,REDACTED
Gloucester City Council,23UE,REDACTED,REDACTED,REDACTED,REDACTED,REDACTED,20/05/2016,REDACTED,300,NET,REDACTED,REDACTED
Gloucester City Council,23UE,Guildhall Works,RY155,Contract Payments,20,waterless urinal parts,20/05/2016,418830,204,CAP,Gentworks Ltd,10388W
Gloucester City Council,23UE,REDACTED,REDACTED,REDACTED,REDACTED,REDACTED,20/05/2016,REDACTED,400,NET,REDACTED,REDACTED
Gloucester City Council,23UE,Homelessness,CH120,Rent In Advance,5516,RIA & DEPOSIT,20/05/2016,418941,368.25,NET,Chawda Holdings Ltd,08904N
Gloucester City Council,23UE,Homelessness Prevention,CH122,Fees For Services Received,5350,RIA & DEPOSIT,20/05/2016,418941,395,NET,Chawda Holdings Ltd,08904N
Gloucester City Council,23UE,Managing Director,RE100,Fees For Services Received,5350,Psychometric Assessment feedback,20/05/2016,418949,500,NET,Richardson Associates (Uk) Ltd,16408H
Gloucester City Council,23UE,Marketing Gloucester Charges,RC433,Fees For Services Received,5350,2015 Remembrance Sunday P.A.,20/05/2016,418824,100,NET,REDACTED,REDACTED
Gloucester City Council,23UE,Members Support,RC300,Members Training,5535,conference delegate Hansdot,20/05/2016,418900,20,NET,Nat. Ass. Black Asian & Ethnic Minority Cllrs,16469L
Gloucester City Council,23UE,Pest Control,HD400,Fees For Services Received,5350,pest control,20/05/2016,418901,1729.02,NET,Falconry Services Ltd,10692P
Gloucester City Council,23UE,Pollution Control,HE300,Fees For Services Received,5350,Collection & Disposal Fee,20/05/2016,418656,80,NET,Harry Buckland,16135W
Gloucester City Council,23UE,Pollution Control,HE300,Fees For Services Received,5350,NO2 tubes,20/05/2016,418827,104.25,NET,Gradko International Ltd,11063B
Gloucester City Council,23UE,Registration Of Electors,RS400,Fees For Services Received,5350,polling booth delivery & collection,20/05/2016,418839,1000,NET,Herbert Davis Removals,16446Z
Gloucester City Council,23UE,Registration Of Electors,RS400,Fees For Services Received,5350,securiy labels,20/05/2016,418837,49,NET,Shaw & Sons Ltd,40310F
Gloucester City Council,23UE,Registration Of Electors,RS400,Postages,5400,acct 0870585036 APR16 response plus,20/05/2016,418905,1939.5,NET,Royal Mail S.Wales & South West,35830S
Gloucester City Council,23UE,Registration Of Electors,RS400,Postages,5400,acct 0870585039 APR16 response plus,20/05/2016,418904,1174.74,NET,Royal Mail S.Wales & South West,35830S
Gloucester City Council,23UE,Registration Of Electors,RS400,Postages,5400,FEB16 IER mailings,20/05/2016,418903,753.72,NET,Royal Mail S.Wales & South West,35830S
Gloucester City Council,23UE,Registration Of Electors,RS400,Printing,5300,city council ballot papers,20/05/2016,418836,5780,NET,Alpha Response Print & Mail Ltd,03029U
Gloucester City Council,23UE,Registration Of Electors,RS400,Printing,5300,grass skirt counting cards,20/05/2016,418835,5525,NET,Alpha Response Print & Mail Ltd,03029U
Gloucester City Council,23UE,Registration Of Electors,RS400,Printing,5300,pack labels,20/05/2016,418840,219,NET,Alpha Response Print & Mail Ltd,03029U
Gloucester City Council,23UE,Registration Of Electors,RS400,Printing,5300,PCC ballot papers,20/05/2016,418841,4469.6,NET,Alpha Response Print & Mail Ltd,03029U
Gloucester City Council,23UE,Registration Of Electors,RS400,Publications,5060,schofields election law,20/05/2016,418838,187,NET,Thomson Reuters,43110M
Gloucester City Council,23UE,Robinswoodhill Trading Account,LP203,Purchase Of Livestock,5843,purchase transfers re cows,20/05/2016,418876,100,NET,Gloucester Cattle Society,56263L
Gloucester City Council,23UE,Statutory Testing,RS310,Fees For Services Received,5350,contract 20/5/16-19/5/17,20/05/2016,418560,1646.4,NET,Chubb Fire & Security Ltd,54582K
Gloucester City Council,23UE,Statutory Testing,RS310,Fees For Services Received,5350,monthly call outs,20/05/2016,418890,591.95,NET,Allcoopers Ltd,52921E
Gloucester City Council,23UE,Statutory Testing,RS310,Fees For Services Received,5350,TIC emergency lights,20/05/2016,418521,750,NET,Allcoopers Ltd,52921E
Gloucester City Council,23UE,Townscape Heritage Initiative,LY145,Contract Payments,20,valuation fees,20/05/2016,418851,450,CAP,Guy Welfare Associates Ltd,16470C
Gloucester City Council,23UE,Cemeteries,HC300,Clothing,5200,waterproof overtrousers,23/05/2016,418891,28.5,NET,Safpro Industrial Supply Co,39190W
Gloucester City Council,23UE,Cemeteries,HC300,Purch Vehicles/M. Plant <5000,4000,chain loop,23/05/2016,418895,54.4,NET,Spaldings,48759Y
Gloucester City Council,23UE,Cemeteries,HC300,Purch Vehicles/M. Plant <5000,4000,manual sprayer,23/05/2016,418864,33,NET,Spaldings,48759Y
Gloucester City Council,23UE,Cems/Crems Admin,HC100,Security Services Fees,5351,Services April 2016,23/05/2016,418934,21.16,NET,G4s Cash Solutions (Uk) Ltd,04290V
Gloucester City Council,23UE,Council Streetcare Team,HI101,Maint Of Grounds - General,3030,Barnwood Park signs,23/05/2016,418855,65.77,NET,Severn Signs Ltd,49841D
Gloucester City Council,23UE,Crematorium,HC200,Cleaning Materials,3600,cleaning materials,23/05/2016,418554,296.03,NET,Acs Business Supplies Ltd,15791M
Gloucester City Council,23UE,Crematorium,HC200,Operational Equipment <5000,5012,dirty water pump,23/05/2016,418863,360,NET,Spaldings,48759Y
Gloucester City Council,23UE,Development Management,PT200,Basic Pay - Temporary Staff,2751,temporary staff w/e 8/5/16,23/05/2016,418889,860,NET,The Oyster Partnership Limited,14900T
Gloucester City Council,23UE,Docks Complex - Catering Servs,RB110,Sale Of Council Products,9220,Food,23/05/2016,418642,47.52,NET,Janes Pantry,24500W
Gloucester City Council,23UE,Docks Complex - Services,RB100,Cleaning Materials,3600,cleaning materials,23/05/2016,418554,138.94,NET,Acs Business Supplies Ltd,15791M
Gloucester City Council,23UE,Docks Complex - Services,RB100,Security Services Fees,5351,Services April 2016,23/05/2016,418934,7.06,NET,G4s Cash Solutions (Uk) Ltd,04290V
Gloucester City Council,23UE,REDACTED,REDACTED,REDACTED,REDACTED,REDACTED,23/05/2016,REDACTED,140,NET,REDACTED,REDACTED
Gloucester City Council,23UE,Guildhall Events,LA200,Security Services Fees,5351,Guildhall security MAR16,23/05/2016,418928,765,NET,Nsgl Ltd (Security Acct),12539E
Gloucester City Council,23UE,Planning Policy & Heritage,PT300,Basic Pay - Temporary Staff,2751,temp staff w/e 8/5/16,23/05/2016,418888,1813.13,NET,The Oyster Partnership Limited,14900T
Gloucester City Council,23UE,Pollution Control,HE300,Fees For Services Received,5350,transcription services,23/05/2016,418541,175,NET,Bromsgrove District Council,15037G
Gloucester City Council,23UE,Printing,RP103,Printing,5300,Parking Posters,23/05/2016,418653,40,NET,Alpha Colour Printers Ltd,00945B
Gloucester City Council,23UE,Printing,RP103,Printing,5300,Various Prints,23/05/2016,418652,1153,NET,Alpha Colour Printers Ltd,00945B
Gloucester City Council,23UE,Blackfriars,LA609,Security Services Fees,5351,APR16 security & doorstaff,24/05/2016,418529,150,NET,Nsgl Ltd (Security Acct),12539E
Gloucester City Council,23UE,Cemeteries,HC300,Basic Pay - Temporary Staff,2751,Temporary Staff w/e 08/05/2016,24/05/2016,418834,351.9,NET,Premiere Employment Group Ltd,55468Z
Gloucester City Council,23UE,Client Revs & Bens Contract,RT240,Bailiffs Fees,5368,Recharge Dukes direct payment Apr 16,24/05/2016,418644,2719.34,NET,Civica Uk Ltd,10841X
Gloucester City Council,23UE,Contact Centre,RB300,Postages,5400,Post 15/04 - 28/04 2016,24/05/2016,418909,1709.23,NET,Royal Mail S.Wales & South West,35830S
Gloucester City Council,23UE,Development Management,PT200,Advertising And Publicity,5702,ADVERTS 12MAY16,24/05/2016,418871,233.73,NET,Local World Ltd,08556P
Gloucester City Council,23UE,REDACTED,REDACTED,REDACTED,REDACTED,REDACTED,24/05/2016,REDACTED,110,NET,REDACTED,REDACTED
Gloucester City Council,23UE,Disabled Facilities Grants,CY013,Disabled Facility Grants,74,"Disabled Facilities Grant, MDF5176 final fee",24/05/2016,419003,5139.24,CAP,Mears Home Improvement Ltd,00096G
Gloucester City Council,23UE,Disabled Facilities Grants,CY013,Disabled Facility Grants,74,"Disabled Facilities Grant, MDF5169 final fee",24/05/2016,419001,5192.35,CAP,Mears Home Improvement Ltd,00096G
Gloucester City Council,23UE,Disabled Facilities Grants,CY013,Disabled Facility Grants,74,"Disabled Facilities Grant, MDF5138 interim fee",24/05/2016,419002,3757,CAP,Mears Home Improvement Ltd,00096G
Gloucester City Council,23UE,Guildhall Events,LA200,Security Services Fees,5351,APR16 security & doorstaff,24/05/2016,418529,160.25,NET,Nsgl Ltd (Security Acct),12539E
Gloucester City Council,23UE,Investment Property,RB500,General Repair/Maint Buildings,3000,Blocked Drain,24/05/2016,418833,150,NET,Three Counties Drain Service,44033V
Gloucester City Council,23UE,Licences,HE510,Reimbursements,5591,Refund of temporary event notice,24/05/2016,419000,21,NET,The Waiting Game Ltd,16807N
Gloucester City Council,23UE,National Express,LT105,Materials For Sale,5080,tickets sold on commission,24/05/2016,418910,10538.5,NET,National Express Ltd,31455K
Gloucester City Council,23UE,National Express,LT105,Sale Of Goods And Services,9230,tickets sold on commission,24/05/2016,418910,-997.85,NET,National Express Ltd,31455K
Gloucester City Council,23UE,Pollution Control,HE300,Fees For Services Received,5350,Chevrolet collection and disposal,24/05/2016,418894,80,NET,Harry Buckland,16135W
Gloucester City Council,23UE,Pollution Control,HE300,Fees For Services Received,5350,Punto collection and disposal,24/05/2016,418893,80,NET,Harry Buckland,16135W
Gloucester City Council,23UE,Safer Stronger Communities,FP841,Other Minor Supplies Services,5590,Paws on Patrol 2016 fencing,24/05/2016,418885,635,NET,Show Services Group Ltd,56329F
Gloucester City Council,23UE,Safer Stronger Communities,FP841,Other Minor Supplies Services,5590,Paws on Patrol lunches,24/05/2016,418825,275,NET,Hedleys,58915R
Gloucester City Council,23UE,Statutory Testing,RS310,Legionella,3018,LP sample,24/05/2016,418898,80,NET,Kingfisher Environmental Services Ltd,04738V
Gloucester City Council,23UE,Vehicles,RS140,Fuel,4012,vehicle fuel,24/05/2016,418929,220.35,NET,Allstar Business Solutions Ltd (Arval),06594A
Gloucester City Council,23UE,Business Transformation & Tech,RT700,Computer Hardware <5000,5420,Payment Management Systems APR16-MAR17,25/05/2016,418947,16000,NET,Capita Business Services Limited,54095C
Gloucester City Council,23UE,Business Transformation & Tech,RT700,Internet Service Provider Fees,5429,acct 814639 REVS MAR-APR16,25/05/2016,417970,128.06,NET,Virgin Media Business,01869B
Gloucester City Council,23UE,Business Transformation & Tech,RT700,Mobile Phones,5409,Charges April 2016,25/05/2016,417339,8.38,NET,Everything Everywhere Ltd (T-Mobile),57543S
Gloucester City Council,23UE,Business Transformation & Tech,RT700,Mobile Phones,5409,Charges March 2016,25/05/2016,417254,366.53,NET,Everything Everywhere Ltd (T-Mobile),57543S
Gloucester City Council,23UE,Business Transformation & Tech,RT700,Mobile Phones,5409,Charges May 2016,25/05/2016,418737,8.84,NET,Everything Everywhere Ltd (T-Mobile),57543S
Gloucester City Council,23UE,Business Transformation & Tech,RT700,Mobile Phones,5409,Charges May 2016,25/05/2016,418738,8.38,NET,Everything Everywhere Ltd (T-Mobile),57543S
Gloucester City Council,23UE,REDACTED,REDACTED,REDACTED,REDACTED,REDACTED,25/05/2016,REDACTED,75,NET,REDACTED,REDACTED
Gloucester City Council,23UE,Docks Complex - Castlemeads Cp,RB210,Contracted Services,6970,GC Fixed Overhead,25/05/2016,418688,743.71,NET,Apcoa Parking (Uk) Ltd,09954M
Gloucester City Council,23UE,Docks Complex - Castlemeads Cp,RB210,Contracted Services,6970,GC P&D Headcams,25/05/2016,418691,2098.44,NET,Apcoa Parking (Uk) Ltd,09954M
Gloucester City Council,23UE,Docks Complex - Castlemeads Cp,RB210,Contracted Services,6970,GC Vehicles,25/05/2016,418689,454.26,NET,Apcoa Parking (Uk) Ltd,09954M
Gloucester City Council,23UE,Environmental Planning,LM340,Fees For Services Received,5350,Wycombe Road - Bollards,25/05/2016,418868,632,NET,Greenfields Garden Services Ltd,48130G
Gloucester City Council,23UE,Environmental Planning,LM340,Repair/Maint Of Monuments,3004,Works - Highfield Gardens,25/05/2016,416268,750,NET,Mcallister  Masonry,28900K
Gloucester City Council,23UE,Folk Museum,LM210,Security Services Fees,5351,CHUBB FIRE & SECURITY LTD,25/05/2016,418860,315.22,NET,Chubb Fire & Security Ltd,54582K
Gloucester City Council,23UE,Kings Quarter,RY146,Contract Payments,20,Demolition Works - Grosvenor House,25/05/2016,418854,83463.91,CAP,Wye Valley Demolition Ltd,07242C
Gloucester City Council,23UE,REDACTED,REDACTED,REDACTED,REDACTED,REDACTED,25/05/2016,REDACTED,21,NET,REDACTED,REDACTED
Gloucester City Council,23UE,Off Street Car Parks,PP110,Contracted Services,6970,GC Fixed Overhead,25/05/2016,418688,29.77,NET,Apcoa Parking (Uk) Ltd,09954M
Gloucester City Council,23UE,Off Street Car Parks,PP110,Contracted Services,6970,GC other items,25/05/2016,418692,10999.18,NET,Apcoa Parking (Uk) Ltd,09954M
Gloucester City Council,23UE,Off Street Car Parks,PP110,Contracted Services,6970,GC variable enforcement,25/05/2016,418690,4332.31,NET,Apcoa Parking (Uk) Ltd,09954M
Gloucester City Council,23UE,Parks Contract Management,LP100,Maint Of Grounds - General,3030,Playground Repairs,25/05/2016,417351,678.24,NET,Enterprise (Aol) Ltd,06695G
Gloucester City Council,23UE,Printing,RP103,Printing,5300,MAR16 print room sales,25/05/2016,418826,990.19,NET,Alpha Colour Printers Ltd,00945B
Gloucester City Council,23UE,S106 Hempsted Way Play Area,LY156,Contract Payments,20,Monk Meadow,25/05/2016,417350,300,CAP,Greenfields Garden Services Ltd,48130G
Gloucester City Council,23UE,REDACTED,REDACTED,REDACTED,REDACTED,REDACTED,26/05/2016,REDACTED,330,NET,REDACTED,REDACTED
Gloucester City Council,23UE,Cemeteries,HC300,Routine R And M - Vehicles,4011,john deere tractor blade,26/05/2016,419039,68.53,NET,Garden Machinery Gloucester,55641K
Gloucester City Council,23UE,Cemeteries,HC300,Routine R And M - Vehicles,4011,pole saw service,26/05/2016,419038,125.53,NET,Garden Machinery Gloucester,55641K
Gloucester City Council,23UE,Cemeteries,HC300,Routine R And M - Vehicles,4011,rear light assembly,26/05/2016,419043,168.67,NET,Garden Machinery Gloucester,55641K
Gloucester City Council,23UE,Council Streetcare Team,HI101,Maint Of Grounds - General,3030,LITTLE NORMANS PLAQUE,26/05/2016,419090,75,NET,Greenfields Garden Services Ltd,48130G
Gloucester City Council,23UE,Crematorium,HC200,Repair/Maint Of Fixed Plant,3006,WASTE DRUMS,26/05/2016,419094,1528.85,NET,Facultatieve Technologies Ltd,51210H
Gloucester City Council,23UE,Disabled Facilities Grants,CY013,Disabled Facility Grants,74,"Disabled Facilities Grant, MDF5196",26/05/2016,419115,202.96,CAP,Premiere Healthcare Ltd,09125N
Gloucester City Council,23UE,Disabled Facilities Grants,CY013,Disabled Facility Grants,74,"Disabled Facilities grant, MDF5201",26/05/2016,419114,3095,CAP,Stroud Stairlifts,10315A
Gloucester City Council,23UE,Emergency Planning,RO100,Fees For Services Received,5350,Emergency management service 16/17,26/05/2016,419105,14236.33,NET,Gloucestershire County Council,18650D
Gloucester City Council,23UE,Environmental Planning,LM340,Fees For Services Received,5350,QUEDGELEY OPEN SPACE WORKS,26/05/2016,419089,967,NET,Greenfields Garden Services Ltd,48130G
Gloucester City Council,23UE,Grants To Voluntary Sector,FG100,Abcd Grants,7100A,grant,26/05/2016,419117,600,NET,Gl4 Together,14128M
Gloucester City Council,23UE,Grants To Voluntary Sector,FG100,Members Allocation Fund,7100F,grant,26/05/2016,419118,170,NET,Hucclecote Rfc,16125Z
Gloucester City Council,23UE,REDACTED,REDACTED,REDACTED,REDACTED,REDACTED,26/05/2016,REDACTED,240,NET,REDACTED,REDACTED
Gloucester City Council,23UE,REDACTED,REDACTED,REDACTED,REDACTED,REDACTED,26/05/2016,REDACTED,510,NET,REDACTED,REDACTED
Gloucester City Council,23UE,Homelessness,CH120,Rent In Advance,5516,RIA & DEPOSIT,26/05/2016,419113,50.8,NET,Shanghai Restaurant,16938W
Gloucester City Council,23UE,Homelessness Prevention,CH122,Fees For Services Received,5350,RIA & DEPOSIT,26/05/2016,419113,325,NET,Shanghai Restaurant,16938W
Gloucester City Council,23UE,Investment Property,RB500,General Repair/Maint Buildings,3000,scaffold hire 92-96 Westgate St,26/05/2016,419096,2414,NET,King Scaffolding Ltd,16240Y
Gloucester City Council,23UE,Kings Quarter,RY146,Contract Payments,20,prof charges re Bentink Hse underlease,26/05/2016,419073,418,CAP,Bevan Brittan,06630Y
Gloucester City Council,23UE,Kings Quarter Redevelopment,RB600,Fees For Services Received,5350,fees re land at St Oswalds,26/05/2016,419083,3500,NET,Cb Richard Ellis Ltd,12446N
Gloucester City Council,23UE,REDACTED,REDACTED,REDACTED,REDACTED,REDACTED,26/05/2016,REDACTED,21,NET,REDACTED,REDACTED
Gloucester City Council,23UE,Play Area Refurbishment,LY071,Contract Payments,20,ALMA PLACE PLAY AREA REFURB,26/05/2016,419037,20881.95,CAP,Greenfields Garden Services Ltd,48130G
Gloucester City Council,23UE,Robinswood All Paths Project,LY162,Contract Payments,20,GATES FOR ROBINSWOOD HILL,26/05/2016,419093,1531,CAP,R & R Group,56539S
Gloucester City Council,23UE,Safe At Home Grants,CY012,Other Capital Grants,89,safe at home contribution Q4 MAR-MAY16,26/05/2016,419106,4934,CAP,Gloucestershire County Council,18650D
Gloucester City Council,23UE,The Arbor,HC501,Catering Provisions -Food,5110,food,26/05/2016,419099,269.11,NET,Bidvest Foodservice (3663),55585U
Gloucester City Council,23UE,The Arbor,HC501,Catering Provisions -Food,5110,food,26/05/2016,419100,130,NET,Bidvest Foodservice (3663),55585U
Gloucester City Council,23UE,The Arbor,HC501,Catering Provisions -Food,5110,food,26/05/2016,419101,188.25,NET,Bidvest Foodservice (3663),55585U
Gloucester City Council,23UE,The Arbor,HC501,Catering Provisions -Liquor,5111,drinks for resale,26/05/2016,419041,319.31,NET,Cellar Supplies Cheltenham Ltd,01563L
Gloucester City Council,23UE,The Arbor,HC501,Catering Provisions -Liquor,5111,drinks for resale,26/05/2016,419042,175.36,NET,Cellar Supplies Cheltenham Ltd,01563L
Gloucester City Council,23UE,Tic Trading,LT110,Materials For Sale,5080,goods for resale,26/05/2016,419087,100,NET,Inish Publications,10233D
Gloucester City Council,23UE,Townscape Heritage Initiative,LY145,Contract Payments,20,payment of THI grant,26/05/2016,419036,10000,CAP,The Nelson Trust,05437D
Gloucester City Council,23UE,Unallocated It,RY525,Contract Payments,20,EXPENSES APR16,26/05/2016,419044,158.4,CAP,Civica Uk Ltd,10841X
Gloucester City Council,23UE,Aspire Admin Charges,LC105,Security Services Fees,5351,Amendments to contract,27/05/2016,418741,21.28,NET,G4s Cash Solutions (Uk) Ltd,04290V
Gloucester City Council,23UE,Aspire Admin Charges,LC105,Security Services Fees,5351,Services June 2016,27/05/2016,418740,184.94,NET,G4s Cash Solutions (Uk) Ltd,04290V
Gloucester City Council,23UE,Business Transformation & Tech,RT700,Computer Hardware <5000,5420,Dell Lattitude E5470,27/05/2016,419076,541.96,NET,Dell Computers Corporation Ltd,55920C
Gloucester City Council,23UE,Business Transformation & Tech,RT700,Mobile Phones,5409,ACCT 5500385 AIRTIME,27/05/2016,419045,330,NET,O2 Uk,16206Y
Gloucester City Council,23UE,Business Transformation & Tech,RT700,Mobile Phones,5409,airtime invocie re a/c 5500385,27/05/2016,419046,585.96,NET,O2 Uk,16206Y
Gloucester City Council,23UE,Business Transformation & Tech,RT700,Stationery,5302,carry case,27/05/2016,419070,52.77,NET,Dell Computers Corporation Ltd,55920C
Gloucester City Council,23UE,Cemeteries,HC300,Operational Materials,5070,"cigarette bin, oil",27/05/2016,419080,180.75,NET,Spaldings,48759Y
Gloucester City Council,23UE,Cemeteries,HC300,Operational Materials,5070,Socket Set,27/05/2016,418940,26.32,NET,Machine Mart,56123E
Gloucester City Council,23UE,Cems/Crems Admin,HC100,Security Services Fees,5351,Services June 2016,27/05/2016,418740,105.42,NET,G4s Cash Solutions (Uk) Ltd,04290V
Gloucester City Council,23UE,City Museum And Art Gallery,LM200,Security Services Fees,5351,Services June 2016,27/05/2016,418740,92.47,NET,G4s Cash Solutions (Uk) Ltd,04290V
Gloucester City Council,23UE,Civica Contract Revs & Bens,RT250,Contracted Services,6970,Pensions Excess,27/05/2016,419065,11165.54,NET,Civica Uk Ltd,10841X
Gloucester City Council,23UE,Civic Admin And Hospitality,RC210,Gifts And Prizes,7150,City of Gloucester medallions,27/05/2016,417976,449.87,NET,Thomas Fattorini Ltd,14975J
Gloucester City Council,23UE,Civica It Contract,RT270,Contracted Services,6970,IT managed services JUN16,27/05/2016,418273,48061.14,NET,Civica Uk Ltd,10841X
Gloucester City Council,23UE,Civica It Contract,RT270,Contracted Services,6970,Pensions Excess,27/05/2016,419064,796.05,NET,Civica Uk Ltd,10841X
Gloucester City Council,23UE,Client Revs & Bens Contract,RT240,Bailiffs Fees,5368,VAT due on fees,27/05/2016,418856,0,NET,Bristow & Sutor,05450M
Gloucester City Council,23UE,Client Revs & Bens Contract,RT240,Bailiffs Fees,5368,VAT on fees colledted,27/05/2016,418862,0,NET,Phoenix Commercial Collections Ltd,13435J
Gloucester City Council,23UE,Client Revs & Bens Contract,RT240,Bailiffs Fees,5368,vat only invoice,27/05/2016,418511,0,NET,Bristow & Sutor,05450M
Gloucester City Council,23UE,Client Revs & Bens Contract,RT240,Bailiffs Fees,5368,vat only invoice,27/05/2016,418512,0,NET,Bristow & Sutor,05450M
Gloucester City Council,23UE,Client Revs & Bens Contract,RT240,Bailiffs Fees,5368,VAT only invoice,27/05/2016,418857,0,NET,Phoenix Commercial Collections Ltd,13435J
Gloucester City Council,23UE,Corporate Reporting /Financing,RC504,Fees For Services Received,5350,childcare vouchers,27/05/2016,418514,43.55,NET,Wider Plan Ltd ( Formerly Kiddivouchers),07893B
Gloucester City Council,23UE,Council Streetcare Team,HI101,Maint Of Grounds - General,3030,goods,27/05/2016,418852,80.48,NET,Countrywide Farmers,55687J
Gloucester City Council,23UE,Countryside Unit,LP201,Maint Of Grounds - General,3030,goods,27/05/2016,418852,20.83,NET,Countrywide Farmers,55687J
Gloucester City Council,23UE,Countryside Unit,LP201,Overtime -Building Maint Staff,1303,goods,27/05/2016,418852,38.48,NET,Countrywide Farmers,55687J
Gloucester City Council,23UE,Development Management,PT200,Advertising And Publicity,5702,adverts 19/5/16,27/05/2016,419074,146.08,NET,Local World Ltd,08556P
Gloucester City Council,23UE,Development Management,PT200,Basic Pay - Temporary Staff,2751,temp staff w/e 15/5/16,27/05/2016,419072,1420,NET,The Oyster Partnership Limited,14900T
Gloucester City Council,23UE,Docks Complex - Catering Servs,RB110,Catering Provisions -Food,5110,Food,27/05/2016,418679,214.15,NET,Bidvest Foodservice (3663),55585U
Gloucester City Council,23UE,Docks Complex - Catering Servs,RB110,Catering Provisions -Food,5110,Food,27/05/2016,418680,217.15,NET,Bidvest Foodservice (3663),55585U
Gloucester City Council,23UE,Docks Complex - Catering Servs,RB110,Catering Provisions -Food,5110,Food,27/05/2016,418681,138.89,NET,Bidvest Foodservice (3663),55585U
Gloucester City Council,23UE,Docks Complex - Catering Servs,RB110,Catering Provisions -Food,5110,Food,27/05/2016,418682,211.02,NET,Bidvest Foodservice (3663),55585U
Gloucester City Council,23UE,Docks Complex - Services,RB100,Security Services Fees,5351,Services June 2016,27/05/2016,418740,276.2,NET,G4s Cash Solutions (Uk) Ltd,04290V
Gloucester City Council,23UE,Folk Museum,LM210,Security Services Fees,5351,Services June 2016,27/05/2016,418740,92.47,NET,G4s Cash Solutions (Uk) Ltd,04290V
Gloucester City Council,23UE,Gloucester Guildhall,LA100,General Repair/Maint Buildings,3000,scaff tag inspection visit 21/4/16,27/05/2016,418205,148,NET,Global Platforms Ltd,09794K
Gloucester City Council,23UE,Gloucester Guildhall,LA100,Security Services Fees,5351,Services June 2016,27/05/2016,418740,92.47,NET,G4s Cash Solutions (Uk) Ltd,04290V
Gloucester City Council,23UE,Homelessness,CH120,Removal And Storage Fees,5513,storage fees,27/05/2016,418000,78.75,NET,Advanced Removals & Storage Ltd,57142R
Gloucester City Council,23UE,Homelessness,CH120,Rent In Advance,5516,RIA & Deposit,27/05/2016,419230,360.6,NET,Surelet,06858N
Gloucester City Council,23UE,REDACTED,REDACTED,REDACTED,REDACTED,REDACTED,27/05/2016,REDACTED,507.68,NET,REDACTED,REDACTED
Gloucester City Council,23UE,Homelessness Prevention,CH122,Fees For Services Received,5350,RIA & Deposit,27/05/2016,419230,450,NET,Surelet,06858N
Gloucester City Council,23UE,REDACTED,REDACTED,REDACTED,REDACTED,REDACTED,27/05/2016,REDACTED,400,NET,REDACTED,REDACTED
Gloucester City Council,23UE,REDACTED,REDACTED,REDACTED,REDACTED,REDACTED,27/05/2016,REDACTED,500,NET,REDACTED,REDACTED
Gloucester City Council,23UE,Investment Property,RB500,Consultants Fees,5349,S/C on account,27/05/2016,416524,2655,NET,Alder King,02367D
Gloucester City Council,23UE,Investment Property,RB500,Consultants Fees,5349,S/C On account,27/05/2016,416522,3876.25,NET,Alder King,02367D
Gloucester City Council,23UE,Investment Property,RB500,Consultants Fees,5349,S/C On Account,27/05/2016,416523,2624.25,NET,Alder King,02367D
Gloucester City Council,23UE,Investment Property,RB500,General Repair/Maint Buildings,3000,repairs to Harry Keats cold room no 5,27/05/2016,418524,1418.86,NET,Mitchells (Gloucester) Ltd,30160U
Gloucester City Council,23UE,Managing Director,RE100,Conference/Meeting Expenses,5510,DELEGATE TO LGA CONFERENCE 2016,27/05/2016,418866,495,NET,Local Government Association,11683F
Gloucester City Council,23UE,Members Support,RC300,Conference/Meeting Expenses,5510,LGA conference 2016 delagates x 3,27/05/2016,418867,1485,NET,Local Government Association,11683F
Gloucester City Council,23UE,Nms Contract,HI102,Operational Materials,5070,purple sacks,27/05/2016,419078,903,NET,Polystar Plastics Ltd,01120C
Gloucester City Council,23UE,Off Street Car Parks,PP110,General Repair/Maint Buildings,3000,Delivery Fee,27/05/2016,418748,10,NET,Ermin Plant Hire & Services Ltd,14150V
Gloucester City Council,23UE,Off Street Car Parks,PP110,General Repair/Maint Buildings,3000,road cones,27/05/2016,419098,35.98,NET,Ermin Plant Hire & Services Ltd,14150V
Gloucester City Council,23UE,Planning Policy & Heritage,PT300,Basic Pay - Temporary Staff,2751,temp staff w/e 15/5/16,27/05/2016,419071,2266.4,NET,The Oyster Partnership Limited,14900T
Gloucester City Council,23UE,Safer Stronger Communities,FP841,Other Minor Supplies Services,5590,drug box v4.1 upgraded,27/05/2016,419069,532,NET,D&Wp,59524B
Gloucester City Council,23UE,The Fleece,RB530,Asbestos Management Plan,3003,Fleece Hotel air monitoring,27/05/2016,417708,1850,NET,Maylarch Environmental Ltd,16398J
Gloucester City Council,23UE,Tourism Marketing,LT100,Security Services Fees,5351,Services June 2016,27/05/2016,418740,92.47,NET,G4s Cash Solutions (Uk) Ltd,04290V
Gloucester City Council,23UE,Civica Admin Charges,RT105,Fees For Services Received,5350,Subscription,31/05/2016,418695,4,NET,Companies House,58954E
Gloucester City Council,23UE,Client Revs & Bens Contract,RT240,Bailiffs Fees,5368,VAT due on fees,31/05/2016,418892,0,NET,Bristow & Sutor,05450M
Gloucester City Council,23UE,REDACTED,REDACTED,REDACTED,REDACTED,REDACTED,31/05/2016,REDACTED,300,NET,REDACTED,REDACTED
Gloucester City Council,23UE,REDACTED,REDACTED,REDACTED,REDACTED,REDACTED,31/05/2016,REDACTED,40,NET,REDACTED,REDACTED
Gloucester City Council,23UE,Managing Director,RE100,Conference/Meeting Expenses,5510,LGA Conference 2016,31/05/2016,419129,82.5,NET,Bournemouth Convention Bureau Ltd,14627M
Gloucester City Council,23UE,Members Support,RC300,Conference/Meeting Expenses,5510,LGA Conference 2016,31/05/2016,419129,697.5,NET,Bournemouth Convention Bureau Ltd,14627M
Gloucester City Council,23UE,Safe At Home Grants,CY012,Other Capital Grants,89,safe at home JUN16-AUG17,31/05/2016,418513,56375,CAP,Gloucestershire County Council,18650D
Gloucester City Council,23UE,Targeted Historic Grants,GY008,Contract Payments,20,Grant,31/05/2016,419263,760,CAP,Nick Sharpe T/A Sharpe Property Services,16480Z
Gloucester City Council,23UE,Tic Theatre Ticket Sales,LT107,Materials For Sale,5080,Ticket Sales - Festival 2016,31/05/2016,419264,1672,NET,Carducci Music Trust,12940Z
Gloucester City Council,23UE,Tic Theatre Ticket Sales,LT107,Sale Of Goods And Services,9230,Ticket Sales - Festival 2016,31/05/2016,419264,-69.67,NET,Carducci Music Trust,12940Z
Gloucester City Council,23UE,Business Transformation & Tech,RT700,Computer Hardware Maintenance,5426,NBS Building full service,,418278,6525,NET,Riba Enterprises,09988U
Gloucester City Council,23UE,Business Transformation & Tech,RT700,Computer Software Maintenance,5427,Information@Work JUN16-MAY17 support,,417887,1290.37,NET,Northgate Public Services Uk Ltd,08982S
Gloucester City Council,23UE,Business Transformation & Tech,RT700,Licences,5703,Information@work JUN16-MAY17 licences,,417886,1150,NET,Northgate Public Services Uk Ltd,08982S
Gloucester City Council,23UE,Business Transformation & Tech,RT700,Mobile Phones,5409,GSI convergence framework,,417124,2435.99,NET,Vodafone Ltd,53527D
Gloucester City Council,23UE,Corporate Reporting /Financing,RC504,Fees For Services Received,5350,final fee 2013/14 audit,,418204,900,NET,Kpmg,06498X
Gloucester City Council,23UE,Flooding And Drainage,HE306,Maint Of Grounds - General,3030,Root Cutting,,418937,4122.26,NET,Onsite Central Ltd,16437A
Gloucester City Council,23UE,Investment Property,RB500,General Repair/Maint Buildings,3000,Callout - Fit detector to ceiling,,417109,17,NET,Allcoopers Ltd,52921E
Gloucester City Council,23UE,Investment Property,RB500,General Repair/Maint Buildings,3000,Fire Alarm Fault,,417107,17,NET,Allcoopers Ltd,52921E
Gloucester City Council,23UE,Investment Property,RB500,General Repair/Maint Buildings,3000,Fire Alarm Fault,,417108,17,NET,Allcoopers Ltd,52921E
Gloucester City Council,23UE,Investment Property,RB500,General Repair/Maint Buildings,3000,Test relay on front door,,417110,136,NET,Allcoopers Ltd,52921E
Gloucester City Council,23UE,The Arbor,HC501,Catering Provisions -Food,5110,Food,,419222,336.37,NET,Bidvest Foodservice (3663),55585U
,,,,,,,,Sum:,1776873.14,,,
